{"text_format":"1","workbook":"xlsx","n_sheets":12,"sheets":["COMMANDE GLOBALE","Stock avant commande A","Stock à réintégrer A","COMMANDE A","Stock avant commande E","Stock à réintégrer E","COMMANDE E","Stock avant commande O","Stock à réintégrer O","COMMANDE O","Stock avant commande S","COMMANDE S"],"not_rendered":{"charts":0,"images":0,"macros":1,"external_links":0,"defined_names":5,"comments":0,"pivot_tables":0},"unopened":[],"bounds":{"document_bytes":16777216,"sheet_cells":100000,"rows_first":2000,"rows_last":500,"rows_between":2000,"halvings":0,"cell_chars":16384,"cell_head_chars":4096},"cells_cut":0,"cells_raw":0,"read":"whole","date_system":"1900"}

{"sheet":"COMMANDE GLOBALE","index":0,"n_rows":34,"n_cols":15,"rows_kept":34,"cut":false,"hidden":true,"merged":[[29,0,32,0],[29,4,32,4],[29,8,32,8],[29,12,32,12],[17,0,20,0],[17,4,20,4],[17,8,20,8],[17,12,20,12],[21,0,24,0],[21,4,24,4],[21,8,24,8],[21,12,24,12],[9,0,12,0],[9,4,12,4],[9,8,12,8],[9,12,12,12],[13,0,16,0],[13,4,16,4],[13,8,16,8],[13,12,16,12],[5,0,8,0],[5,4,8,4],[5,8,8,8],[5,12,8,12],[0,0,0,14],[2,0,2,2],[2,4,2,6],[2,8,2,10],[2,12,2,14]]}
["Commande protections globale"]
[]
["Unité A",null,null,null,"Unité E",null,null,null,"Unité O",null,null,null,"Unité S"]
[]
[null,"Taille","Nbre Cartons",null,null,"Taille","Nbre Cartons",null,null,"Taille","Nbre Cartons",null,null,"Taille","Nbre Cartons"]
["CHANGE COMPLET JOUR","S",{"$f":"'COMMANDE A'!B7","v":0},null,"CHANGE COMPLET JOUR","S",{"$f":"'COMMANDE E'!B7","v":0},null,"CHANGE COMPLET JOUR","S",{"$f":"'COMMANDE O'!B7","v":0},null,"CHANGE COMPLET JOUR","S",{"$f":"'COMMANDE S'!B8","v":0}]
[null,"M",{"$f":"'COMMANDE A'!C7","v":2},null,null,"M",{"$f":"'COMMANDE E'!C7","v":0},null,null,"M",{"$f":"'COMMANDE O'!C7","v":0},null,null,"M",{"$f":"'COMMANDE S'!C8","v":0}]
[null,"L",{"$f":"'COMMANDE A'!D7","v":3},null,null,"L",{"$f":"'COMMANDE E'!D7","v":0},null,null,"L",{"$f":"'COMMANDE O'!D7","v":0},null,null,"L",{"$f":"'COMMANDE S'!D8","v":0}]
[null,"XL",{"$f":"'COMMANDE A'!E7","v":0},null,null,"XL",{"$f":"'COMMANDE E'!E7","v":0},null,null,"XL",{"$f":"'COMMANDE O'!E7","v":0},null,null,"XL",{"$f":"'COMMANDE S'!E8","v":0}]
["CHANGE COMPLET NUIT","S",{"$f":"'COMMANDE A'!F7","v":1},null,"CHANGE COMPLET NUIT","S",{"$f":"'COMMANDE E'!F7","v":0},null,"CHANGE COMPLET NUIT","S",{"$f":"'COMMANDE O'!F7","v":4},null,"CHANGE COMPLET NUIT","S",{"$f":"'COMMANDE S'!F8","v":0}]
[null,"M",{"$f":"'COMMANDE A'!G7","v":5},null,null,"M",{"$f":"'COMMANDE E'!G7","v":7},null,null,"M",{"$f":"'COMMANDE O'!G7","v":5},null,null,"M",{"$f":"'COMMANDE S'!G8","v":0}]
[null,"L",{"$f":"'COMMANDE A'!H7","v":3},null,null,"L",{"$f":"'COMMANDE E'!H7","v":2},null,null,"L",{"$f":"'COMMANDE O'!H7","v":4},null,null,"L",{"$f":"'COMMANDE S'!H8","v":0}]
[null,"XL",{"$f":"'COMMANDE A'!I7","v":0},null,null,"XL",{"$f":"'COMMANDE E'!I7","v":3},null,null,"XL",{"$f":"'COMMANDE O'!I7","v":0},null,null,"XL",{"$f":"'COMMANDE S'!I8","v":0}]
["ID SLIP EXPERT\nMAXI PRIME","S",{"$f":"'COMMANDE A'!J7","v":0},null,"ID SLIP EXPERT\nMAXI PRIME","S",{"$f":"'COMMANDE E'!J7","v":0},null,"ID SLIP EXPERT\nMAXI PRIME","S",{"$f":"'COMMANDE O'!J7","v":1},null,"ID SLIP EXPERT\nMAXI PRIME","S",{"$f":"'COMMANDE S'!J8","v":0}]
[null,"M",{"$f":"'COMMANDE A'!K7","v":2},null,null,"M",{"$f":"'COMMANDE E'!K7","v":5},null,null,"M",{"$f":"'COMMANDE O'!K7","v":5},null,null,"M",{"$f":"'COMMANDE S'!K8","v":0}]
[null,"L",{"$f":"'COMMANDE A'!L7","v":0},null,null,"L",{"$f":"'COMMANDE E'!L7","v":0},null,null,"L",{"$f":"'COMMANDE O'!L7","v":2},null,null,"L",{"$f":"'COMMANDE S'!L8","v":0}]
[null,"XL",{"$f":"'COMMANDE A'!M7","v":0},null,null,"XL",{"$f":"'COMMANDE E'!M7","v":0},null,null,"XL",{"$f":"'COMMANDE O'!M7","v":0},null,null,"XL",{"$f":"'COMMANDE S'!M8","v":0}]
["TENA SLIP MAX","S",{"$f":"'COMMANDE A'!N7","v":0},null,"TENA SLIP MAX","S",{"$f":"'COMMANDE E'!N7","v":0},null,"TENA SLIP MAX","S",{"$f":"'COMMANDE O'!N7","v":0},null,"TENA SLIP MAX","S",{"$f":"'COMMANDE S'!N8","v":0}]
[null,"M",{"$f":"'COMMANDE A'!O7","v":4},null,null,"M",{"$f":"'COMMANDE E'!N8","v":0},null,null,"M",{"$f":"'COMMANDE O'!O7","v":0},null,null,"M",{"$f":"'COMMANDE S'!O8","v":0}]
[null,"L",{"$f":"'COMMANDE A'!P7","v":4},null,null,"L",{"$f":"'COMMANDE E'!N9","v":0},null,null,"L",{"$f":"'COMMANDE O'!P7","v":0},null,null,"L",{"$f":"'COMMANDE S'!P8","v":0}]
[null,"XL",{"$f":"'COMMANDE A'!Q7","v":0},null,null,"XL",{"$f":"'COMMANDE E'!Q7","v":0},null,null,"XL",{"$f":"'COMMANDE O'!Q7","v":0},null,null,"XL",{"$f":"'COMMANDE S'!Q8","v":0}]
["Pants","S",{"$f":"'COMMANDE A'!R7","v":0},null,"Pants","S",{"$f":"'COMMANDE E'!R7","v":0},null,"Pants","S",{"$f":"'COMMANDE O'!R7","v":0},null,"Pants","S",{"$f":"'COMMANDE S'!R8","v":0}]
[null,"M",{"$f":"'COMMANDE A'!S7","v":0},null,null,"M",{"$f":"'COMMANDE E'!S7","v":0},null,null,"M",{"$f":"'COMMANDE O'!S7","v":1},null,null,"M",{"$f":"'COMMANDE S'!S8","v":0}]
[null,"L",{"$f":"'COMMANDE A'!T7","v":1},null,null,"L",{"$f":"'COMMANDE E'!T7","v":0},null,null,"L",{"$f":"'COMMANDE O'!T7","v":1},null,null,"L",{"$f":"'COMMANDE S'!T8","v":0}]
[null,"XL",{"$f":"'COMMANDE A'!U7","v":0},null,null,"XL",{"$f":"'COMMANDE E'!U7","v":0},null,null,"XL",{"$f":"'COMMANDE O'!U7","v":0},null,null,"XL",{"$f":"'COMMANDE S'!U8","v":0}]
["ANAFORM EXTRA",null,{"$f":"'COMMANDE A'!V7","v":1},null,"ANAFORM EXTRA",null,{"$f":"'COMMANDE E'!V7","v":1},null,"ANAFORM EXTRA",null,{"$f":"'COMMANDE O'!V7","v":1},null,"ANAFORM EXTRA",null,{"$f":"'COMMANDE S'!V8","v":0}]
["ALEZE 60 X 60",null,{"$f":"'COMMANDE A'!W7","v":0},null,"ALEZE 60 X 60",null,{"$f":"'COMMANDE E'!W7","v":0},null,"ALEZE 60 X 60",null,{"$f":"'COMMANDE O'!W7","v":1},null,"ALEZE 60 X 60",null,{"$f":"'COMMANDE S'!W8","v":0}]
["ALEZE 60 X 90",null,{"$f":"'COMMANDE A'!X7","v":3},null,"ALEZE 60 X 90",null,{"$f":"'COMMANDE E'!X7","v":3},null,"ALEZE 60 X 90",null,{"$f":"'COMMANDE O'!X7","v":6},null,"ALEZE 60 X 90",null,{"$f":"'COMMANDE S'!X8","v":0}]
["GANTS USAGE UNIQUE",null,{"$f":"'COMMANDE A'!Y7","v":4},null,"GANTS USAGE UNIQUE",null,{"$f":"'COMMANDE E'!Y7","v":3},null,"GANTS USAGE UNIQUE",null,{"$f":"'COMMANDE O'!Y7","v":3},null,"GANTS USAGE UNIQUE",null,{"$f":"'COMMANDE S'!Y8","v":0}]
["GANTS VINYLE","S",{"$f":"'COMMANDE A'!Z7","v":2},null,"GANTS VINYLE","S",{"$f":"'COMMANDE E'!Z7","v":3},null,"GANTS VINYLE","S",{"$f":"'COMMANDE O'!Z7","v":3},null,"GANTS VINYLE","S",{"$f":"'COMMANDE S'!Z8","v":0}]
[null,"M",{"$f":"'COMMANDE A'!AA7","v":3},null,null,"M",{"$f":"'COMMANDE E'!AA7","v":3},null,null,"M",{"$f":"'COMMANDE O'!AA7","v":4},null,null,"M",{"$f":"'COMMANDE S'!AA8","v":0}]
[null,"L",{"$f":"'COMMANDE A'!AB7","v":3},null,null,"L",{"$f":"'COMMANDE E'!AB7","v":3},null,null,"L",{"$f":"'COMMANDE O'!AB7","v":4},null,null,"L",{"$f":"'COMMANDE S'!AB8","v":0}]
[null,"XL",{"$f":"'COMMANDE A'!AC7","v":2},null,null,"XL",{"$f":"'COMMANDE E'!AC7","v":3},null,null,"XL",{"$f":"'COMMANDE O'!AC7","v":3},null,null,"XL",{"$f":"'COMMANDE S'!AC8","v":0}]
["MOUSSE LAVANTE",null,{"$f":"'COMMANDE A'!AD7","v":1},null,"MOUSSE LAVANTE",null,{"$f":"'COMMANDE E'!AD7","v":1},null,"MOUSSE LAVANTE",null,{"$f":"'COMMANDE O'!AD7","v":1},null,"MOUSSE LAVANTE",null,{"$f":"'COMMANDE S'!AD8","v":0}]

{"sheet":"Stock avant commande A","index":1,"n_rows":49,"n_cols":65,"rows_kept":49,"cut":false,"hidden":false,"merged":[[46,22,47,22],[46,23,47,23],[46,24,47,24],[46,25,46,28],[46,29,47,29],[0,1,0,4],[46,0,47,0],[46,1,46,4],[46,5,46,8],[46,9,46,12],[46,13,46,16],[46,21,47,21],[42,21,43,21],[42,22,43,22],[42,23,43,23],[42,24,43,24],[42,25,42,28],[42,29,43,29],[38,22,39,22],[38,23,39,23],[38,24,39,24],[38,25,38,28],[38,29,39,29],[42,0,43,0],[42,1,42,4],[42,5,42,8],[42,9,42,12],[42,13,42,16],[38,0,39,0],[38,1,38,4],[38,5,38,8],[38,9,38,12],[38,13,38,16],[38,21,39,21],[34,21,35,21],[34,22,35,22],[34,23,35,23],[34,24,35,24],[34,25,34,28],[34,29,35,29],[30,22,31,22],[30,23,31,23],[30,24,31,24],[30,25,30,28],[30,29,31,29],[30,21,31,21],[34,0,35,0],[34,1,34,4],[34,5,34,8],[34,9,34,12],[34,13,34,16],[30,0,31,0],[30,1,30,4],[30,5,30,8],[30,9,30,12],[30,13,30,16],[26,21,27,21],[26,22,27,22],[26,23,27,23],[26,24,27,24],[26,25,26,28],[26,29,27,29],[22,22,23,22],[22,23,23,23],[22,24,23,24],[22,25,22,28],[22,29,23,29],[22,21,23,21],[26,0,27,0],[26,1,26,4],[26,5,26,8],[26,9,26,12],[26,13,26,16],[22,0,23,0],[22,1,22,4],[22,5,22,8],[22,9,22,12],[22,13,22,16],[10,22,11,22],[18,23,19,23],[18,24,19,24],[18,25,18,28],[18,29,19,29],[14,22,15,22],[14,23,15,23],[14,24,15,24],[14,25,14,28],[14,29,15,29],[14,1,14,4],[14,5,14,8],[14,9,14,12],[14,13,14,16],[14,21,15,21],[10,0,11,0],[10,1,10,4],[10,5,10,8],[10,9,10,12],[10,13,10,16],[10,21,11,21],[18,0,19,0],[18,1,18,4],[18,5,18,8],[18,9,18,12],[18,13,18,16],[18,21,19,21],[18,22,19,22],[2,29,3,29],[6,0,7,0],[6,1,6,4],[6,5,6,8],[6,9,6,12],[6,13,6,16],[6,21,7,21],[6,22,7,22],[6,23,7,23],[6,24,7,24],[6,25,6,28],[6,29,7,29],[10,23,11,23],[10,24,11,24],[10,25,10,28],[10,29,11,29],[14,0,15,0],[1,1,1,26],[2,0,3,0],[2,1,2,4],[2,5,2,8],[2,9,2,12],[2,13,2,16],[2,21,3,21],[2,22,3,22],[2,23,3,23],[2,24,3,24],[2,25,2,28],[2,17,2,20],[2,60,2,63],[2,64,3,64],[6,36,6,39],[6,40,6,43],[6,44,6,47],[6,48,6,51],[6,52,6,55],[6,56,7,56],[6,57,7,57],[6,58,7,58],[6,59,7,59],[6,60,6,63],[6,64,7,64],[2,36,2,39],[2,40,2,43],[2,44,2,47],[2,48,2,51],[2,52,2,55],[2,56,3,56],[2,57,3,57],[2,58,3,58],[2,59,3,59],[10,60,10,63],[10,64,11,64],[14,36,14,39],[14,40,14,43],[14,44,14,47],[14,48,14,51],[14,52,14,55],[14,56,15,56],[14,57,15,57],[14,58,15,58],[14,59,15,59],[14,60,14,63],[14,64,15,64],[10,36,10,39],[10,40,10,43],[10,44,10,47],[10,48,10,51],[10,52,10,55],[10,56,11,56],[10,57,11,57],[10,58,11,58],[10,59,11,59],[18,57,19,57],[18,58,19,58],[18,59,19,59],[18,60,18,63],[18,64,19,64],[18,56,19,56],[18,36,18,39],[18,40,18,43],[18,44,18,47],[18,48,18,51],[18,52,18,55],[22,60,22,63],[22,64,23,64],[26,36,26,39],[26,40,26,43],[26,44,26,47],[26,48,26,51],[26,52,26,55],[26,56,27,56],[26,57,27,57],[26,58,27,58],[26,59,27,59],[26,60,26,63],[26,64,27,64],[22,36,22,39],[22,40,22,43],[22,44,22,47],[22,48,22,51],[22,52,22,55],[22,56,23,56],[22,57,23,57],[22,58,23,58],[22,59,23,59],[30,60,30,63],[30,64,31,64],[34,36,34,39],[34,40,34,43],[34,44,34,47],[34,48,34,51],[34,52,34,55],[34,56,35,56],[34,57,35,57],[34,58,35,58],[34,59,35,59],[34,60,34,63],[34,64,35,64],[30,36,30,39],[30,40,30,43],[30,44,30,47],[30,48,30,51],[30,52,30,55],[30,56,31,56],[30,57,31,57],[30,58,31,58],[30,59,31,59],[38,60,38,63],[38,64,39,64],[42,36,42,39],[42,40,42,43],[42,44,42,47],[42,48,42,51],[42,52,42,55],[42,56,43,56],[42,57,43,57],[42,58,43,58],[42,59,43,59],[42,60,42,63],[42,64,43,64],[38,36,38,39],[38,40,38,43],[38,44,38,47],[38,48,38,51],[38,52,38,55],[38,56,39,56],[38,57,39,57],[38,58,39,58],[38,59,39,59],[46,60,46,63],[46,64,47,64],[46,36,46,39],[46,40,46,43],[46,44,46,47],[46,48,46,51],[46,52,46,55],[46,56,47,56],[46,57,47,57],[46,58,47,58],[46,59,47,59],[42,17,42,20],[46,17,46,20],[6,17,6,20],[10,17,10,20],[14,17,14,20],[18,17,18,20],[22,17,22,20],[26,17,26,20],[30,17,30,20],[34,17,34,20],[38,17,38,20]]}
["Date:","2021-03-16"]
[null,"STOCK AVANT COMMANDE AZUR"]
["M-F",null,null,null,null,"Change complet NUIT  (8)",null,null,null,null,null,null,null,null,null,null,null,null,null,null,null,null,null,"Aleze           60 X90            (1)","Gants usage unique \n(6)","Gants Vinyle\n(1)  (2)  (2)  (1)                ",null,null,null,"MOUSSE LAVANTE\n(1)",null,null,null,null,null,null,null,null,null,null,"Change complet NUIT       (4 paquets par carton)",null,null,null,null,null,null,null,null,null,null,null,null,null,null,null,null,null,"Aleze           60 X90            (4 paquets par carton)","Gants usage unique (20 paquets \npar carton)","Gants Vinyle                      (10 boites \npar carton)",null,null,null,"Mousse lavante      (12 par carton)"]
[null,null,null,null,null,null,null,"L",null,null,null,null,null,null,null,null,null,null,null,null,null,null,null,null,null,"S","M","L","XL",null,null,null,null,null,null,null,null,null,null,null,null,null,"L",null,null,null,null,null,null,null,null,null,null,null,null,null,null,null,null,null,"S","M","L","XL"]
["Paquets",null,null,null,null,null,null,null,null,null,null,null,null,null,null,null,null,null,null,null,null,null,null,null,null,null,null,null,null,null,null,null,null,null,null,"Paquets",null,null,null,null,null,null,8,null,null,null,null,null,null,null,null,null,null,null,null,null,null,null,1,6,1,2,2,1,1]
[]
["A",null,null,null,null,null,null,null,null,null,null,null,null,null,null,null,null,null,null,null,null,"ANAFORM EXTRA            (2)",null,null,"Gants usage unique \n(6)","Gants Vinyle\n(1)  (2)  (2)  (1)                ",null,null,null,"MOUSSE LAVANTE\n(1)",null,null,null,null,null,null,null,null,null,null,null,null,null,null,null,null,null,null,null,null,null,null,null,null,null,null,"Anaform Extra              (4 paquets par carton)",null,null,"Gants usage unique (20 paquets \npar carton)","Gants Vinyle                      (10 boites \npar carton)",null,null,null,"Mousse lavante      (12 par carton)"]
[null,null,null,null,null,null,null,null,null,null,null,null,null,null,null,null,null,null,null,null,null,null,null,null,null,"S","M","L","XL",null,null,null,null,null,null,null,null,null,null,null,null,null,null,null,null,null,null,null,null,null,null,null,null,null,null,null,null,null,null,null,"S","M","L","XL"]
["Paquets",null,null,null,null,null,null,null,null,null,null,null,null,null,null,null,null,null,null,null,null,null,null,null,null,null,null,null,null,null,null,null,null,null,null,"Paquets",null,null,null,null,null,null,null,null,null,null,null,null,null,null,null,null,null,null,null,null,2,null,null,6,1,2,2,1,1]
[]
["R",null,null,null,null,null,null,null,null,null,null,null,null,null,null,null,null,null,null,null,null,null,null,null,"Gants usage unique \n(6)","Gants Vinyle\n(1)  (2)  (2)  (1)                ",null,null,null,"MOUSSE LAVANTE\n(1)",null,null,null,null,null,null,null,null,null,null,null,null,null,null,null,null,null,null,null,null,null,null,null,null,null,null,null,null,null,"Gants usage unique (20 paquets \npar carton)","Gants Vinyle                      (10 boites \npar carton)",null,null,null,"Mousse lavante      (12 par carton)"]
[null,null,null,null,null,null,null,null,null,null,null,null,null,null,null,null,null,null,null,null,null,null,null,null,null,"S","M","L","XL",null,null,null,null,null,null,null,null,null,null,null,null,null,null,null,null,null,null,null,null,null,null,null,null,null,null,null,null,null,null,null,"S","M","L","XL"]
["Paquets",null,null,null,null,null,null,null,null,null,null,null,null,null,null,null,null,null,null,null,null,null,null,null,null,null,null,null,null,null,null,null,null,null,null,"Paquets",null,null,null,null,null,null,null,null,null,null,null,null,null,null,null,null,null,null,null,null,null,null,null,6,1,2,2,1,1]
[]
["M","Change complet JOUR  (5)",null,null,null,"Change complet NUIT  (3)",null,null,null,null,null,null,null,null,null,null,null,null,null,null,null,null,null,null,"Gants usage unique \n(6)","Gants Vinyle\n(1)  (2)  (2)  (1)                ",null,null,null,"MOUSSE LAVANTE\n(1)",null,null,null,null,null,null,"Change complet JOUR       (4 paquets par carton)",null,null,null,"Change complet NUIT       (4 paquets par carton)",null,null,null,null,null,null,null,null,null,null,null,null,null,null,null,null,null,null,"Gants usage unique (20 paquets \npar carton)","Gants Vinyle                      (10 boites \npar carton)",null,null,null,"Mousse lavante      (12 par carton)"]
[null,null,"M",null,null,null,"M",null,null,null,null,null,null,null,null,null,null,null,null,null,null,null,null,null,null,"S","M","L","XL",null,null,null,null,null,null,null,null,"M",null,null,null,"M",null,null,null,null,null,null,null,null,null,null,null,null,null,null,null,null,null,null,"S","M","L","XL"]
["Paquets",null,null,null,null,null,null,null,null,null,null,null,null,null,null,null,null,null,null,null,null,null,null,null,null,null,null,null,null,null,null,null,null,null,null,"Paquets",null,5,null,null,null,3,null,null,null,null,null,null,null,null,null,null,null,null,null,null,null,null,null,6,1,2,2,1,1]
[]
["J",null,null,null,null,"Change complet NUIT  (8)",null,null,null,null,null,null,null,null,null,null,null,null,null,null,null,null,null,"Aleze           60 X90            (2)","Gants usage unique \n(6)","Gants Vinyle\n(1)  (2)  (2)  (1)                ",null,null,null,"MOUSSE LAVANTE\n(1)",null,null,null,null,null,null,null,null,null,null,"Change complet NUIT       (4 paquets par carton)",null,null,null,null,null,null,null,null,null,null,null,null,null,null,null,null,null,"Aleze           60 X90            (4 paquets par carton)","Gants usage unique (20 paquets \npar carton)","Gants Vinyle                      (10 boites \npar carton)",null,null,null,"Mousse lavante      (12 par carton)"]
[null,null,null,null,null,null,"M",null,null,null,null,null,null,null,null,null,null,null,null,null,null,null,null,null,null,"S","M","L","XL",null,null,null,null,null,null,null,null,null,null,null,null,"M",null,null,null,null,null,null,null,null,null,null,null,null,null,null,null,null,null,null,"S","M","L","XL"]
["Paquets",null,null,null,null,null,null,null,null,null,null,null,null,null,null,null,null,null,null,null,null,null,null,null,null,null,null,null,null,null,null,null,null,null,null,"Paquets",null,null,null,null,null,8,null,null,null,null,null,null,null,null,null,null,null,null,null,null,null,null,2,6,1,2,2,1,1]
[]
["M",null,null,null,null,null,null,null,null,null,null,null,null,"TENA\n(8)",null,null,null,null,null,null,null,null,null,"Aleze           60 X90            (2)","Gants usage unique \n(6)","Gants Vinyle\n(1)  (2)  (2)  (1)                ",null,null,null,"MOUSSE LAVANTE\n(1)",null,null,null,null,null,null,null,null,null,null,null,null,null,null,null,null,null,null,"TENA SLIP MAX\n(3 paquets par carton)",null,null,null,null,null,null,null,null,null,"Aleze           60 X90            (4 paquets par carton)","Gants usage unique (20 paquets \npar carton)","Gants Vinyle                      (10 boites \npar carton)",null,null,null,"Mousse lavante      (12 par carton)"]
[null,null,null,null,null,null,null,null,null,null,null,null,null,null,null,"L",null,null,null,null,null,null,null,null,null,"S","M","L","XL",null,null,null,null,null,null,null,null,null,null,null,null,null,null,null,null,null,null,null,null,null,"L",null,null,null,null,null,null,null,null,null,"S","M","L","XL"]
["Paquets",null,null,null,null,null,null,null,null,null,null,null,null,null,null,null,null,null,null,null,null,null,null,null,null,null,null,null,null,null,null,null,null,null,null,"Paquets",null,null,null,null,null,null,null,null,null,null,null,null,null,null,8,null,null,null,null,null,null,null,2,6,1,2,2,1,1]
[]
["M","Change complet JOUR  (5)",null,null,null,null,null,null,null,null,null,null,null,"TENA\n(2)",null,null,null,null,null,null,null,null,null,"Aleze           60 X90            (2)","Gants usage unique \n(6)","Gants Vinyle\n(1)  (2)  (2)  (1)                ",null,null,null,"MOUSSE LAVANTE\n(1)",null,null,null,null,null,null,"Change complet JOUR       (4 paquets par carton)",null,null,null,null,null,null,null,null,null,null,null,"TENA SLIP MAX\n(3 paquets par carton)",null,null,null,null,null,null,null,null,null,"Aleze           60 X90            (4 paquets par carton)","Gants usage unique (20 paquets \npar carton)","Gants Vinyle                      (10 boites \npar carton)",null,null,null,"Mousse lavante      (12 par carton)"]
[null,null,null,"L",null,null,null,null,null,null,null,null,null,null,null,"L",null,null,null,null,null,null,null,null,null,"S","M","L","XL",null,null,null,null,null,null,null,null,null,"L",null,null,null,null,null,null,null,null,null,null,null,"L",null,null,null,null,null,null,null,null,null,"S","M","L","XL"]
["Paquets",null,null,null,null,null,null,null,null,null,null,null,null,null,null,null,null,null,null,null,null,null,null,null,null,null,null,null,null,null,null,null,null,null,null,"Paquets",null,null,5,null,null,null,null,null,null,null,null,null,null,null,2,null,null,null,null,null,null,null,2,6,1,2,2,1,1]
[]
["Fl","Change complet JOUR  (5)",null,null,null,null,null,null,null,null,null,null,null,null,null,null,null,null,null,null,null,null,null,"Aleze           60 X90            (2)","Gants usage unique \n(6)","Gants Vinyle\n(1)  (2)  (2)  (1)                ",null,null,null,"MOUSSE LAVANTE\n(1)",null,null,null,null,null,null,"Change complet JOUR       (4 paquets par carton)",null,null,null,null,null,null,null,null,null,null,null,null,null,null,null,null,null,null,null,null,null,"Aleze           60 X90            (4 paquets par carton)","Gants usage unique (20 paquets \npar carton)","Gants Vinyle                      (10 boites \npar carton)",null,null,null,"Mousse lavante      (12 par carton)"]
[null,null,null,"L",null,null,null,null,null,null,null,null,null,null,null,null,null,null,null,null,null,null,null,null,null,"S","M","L","XL",null,null,null,null,null,null,null,null,null,"L",null,null,null,null,null,null,null,null,null,null,null,null,null,null,null,null,null,null,null,null,null,"S","M","L","XL"]
["Paquets",null,null,null,null,null,null,null,null,null,null,null,null,null,null,null,null,null,null,null,null,null,null,null,null,null,null,null,null,null,null,null,null,null,null,"Paquets",null,null,5,null,null,null,null,null,null,null,null,null,null,null,null,null,null,null,null,null,null,null,2,6,1,2,2,1,1]
[]
["Nat",null,null,null,null,"Change complet NUIT  (3)",null,null,null,null,null,null,null,"Pants                                       (4)",null,null,null,null,null,null,null,null,null,"Aleze           60 X90            (1)","Gants usage unique \n(6)","Gants Vinyle\n(1)  (2)  (2)  (1)                ",null,null,null,"MOUSSE LAVANTE\n(1)",null,null,null,null,null,null,null,null,null,null,"Change complet NUIT       (4 paquets par carton)",null,null,null,null,null,null,null,null,null,null,null,"Pants                                       (8 paquets par carton)",null,null,null,null,null,"Aleze           60 X90            (4 paquets par carton)","Gants usage unique (20 paquets \npar carton)","Gants Vinyle                      (10 boites \npar carton)",null,null,null,"Mousse lavante      (12 par carton)"]
[null,null,null,null,null,null,null,"L",null,null,null,null,null,null,null,"L",null,null,null,null,null,null,null,null,null,"S","M","L","XL",null,null,null,null,null,null,null,null,null,null,null,null,null,"L",null,null,null,null,null,null,null,null,null,null,null,"L",null,null,null,null,null,"S","M","L","XL"]
["Paquets",null,null,null,null,null,null,null,null,null,null,null,null,null,null,null,null,null,null,null,null,null,null,null,null,null,null,null,null,null,null,null,null,null,null,"Paquets",null,null,null,null,null,null,3,null,null,null,null,null,null,null,null,null,null,null,4,null,null,null,1,6,1,2,2,1,1]
[]
["Ju",null,null,null,null,"Change complet NUIT  (2)",null,null,null,null,null,null,null,null,null,null,null,null,null,null,null,null,null,null,"Gants usage unique \n(6)","Gants Vinyle\n(1)  (2)  (2)  (1)                ",null,null,null,"MOUSSE LAVANTE\n(1)",null,null,null,null,null,null,null,null,null,null,"Change complet NUIT       (4 paquets par carton)",null,null,null,null,null,null,null,null,null,null,null,null,null,null,null,null,null,null,"Gants usage unique (20 paquets \npar carton)","Gants Vinyle                      (10 boites \npar carton)",null,null,null,"Mousse lavante      (12 par carton)"]
[null,null,null,null,null,"S",null,null,null,null,null,null,null,null,null,null,null,null,null,null,null,null,null,null,null,"S","M","L","XL",null,null,null,null,null,null,null,null,null,null,null,"S",null,null,null,null,null,null,null,null,null,null,null,null,null,null,null,null,null,null,null,"S","M","L","XL"]
["Paquets",null,null,null,null,null,null,null,null,null,null,null,null,null,null,null,null,null,null,null,null,null,null,null,null,null,null,null,null,null,null,null,null,null,null,"Paquets",null,null,null,null,3,null,null,null,null,null,null,null,null,null,null,null,null,null,null,null,null,null,null,6,1,2,2,1,1]
[]
["J-M",null,null,null,null,"Change complet NUIT  (9)",null,null,null,null,null,null,null,null,null,null,null,null,null,null,null,null,null,"Aleze           60 X90            (1)","Gants usage unique \n(6)","Gants Vinyle\n(1)  (2)  (2)  (1)                ",null,null,null,"MOUSSE LAVANTE\n(1)",null,null,null,null,null,null,null,null,null,null,"Change complet NUIT       (4 paquets par carton)",null,null,null,null,null,null,null,null,null,null,null,null,null,null,null,null,null,"Aleze           60 X90            (4 paquets par carton)","Gants usage unique (20 paquets \npar carton)","Gants Vinyle                      (10 boites \npar carton)",null,null,null,"Mousse lavante      (12 par carton)"]
[null,null,null,null,null,"S",null,null,null,null,null,null,null,null,null,null,null,null,null,null,null,null,null,null,null,"S","M","L","XL",null,null,null,null,null,null,null,null,null,null,null,null,"M",null,null,null,null,null,null,null,null,null,null,null,null,null,null,null,null,null,null,"S","M","L","XL"]
["Paquets",null,null,null,null,null,null,null,null,null,null,null,null,null,null,null,null,null,null,null,null,null,null,null,null,null,null,null,null,null,null,null,null,null,null,"Paquets",null,null,null,null,null,9,null,null,null,null,null,null,null,null,null,null,null,null,null,null,null,null,1,6,1,2,2,1,1]
[]
["St",null,null,null,null,null,null,null,null,"ID SLIP EXPERT\nMAXI PRIME\n(5)",null,null,null,"TENA\n(10)",null,null,null,null,null,null,null,null,null,null,"Gants usage unique \n(6)","Gants Vinyle\n(1)  (2)  (2)  (1)                ",null,null,null,"MOUSSE LAVANTE\n(1)",null,null,null,null,null,null,null,null,null,null,null,null,null,null,"ID SLIP EXPERT\nMAXI PRIME\n(3 paquets par carton)",null,null,null,"TENA SLIP MAX\n(3 paquets par carton)",null,null,null,null,null,null,null,null,null,null,"Gants usage unique (20 paquets \npar carton)","Gants Vinyle                      (10 boites \npar carton)",null,null,null,"Mousse lavante      (12 par carton)"]
[null,null,null,null,null,null,null,null,null,null,"M",null,null,null,"M",null,null,null,null,null,null,null,null,null,null,"S","M","L","XL",null,null,null,null,null,null,null,null,null,null,null,null,null,null,null,null,"M",null,null,null,"M",null,null,null,null,null,null,null,null,null,null,"S","M","L","XL"]
["Paquets",null,null,null,null,null,null,null,null,null,null,null,null,null,null,null,null,null,null,null,null,null,null,null,null,null,null,null,null,null,null,null,null,null,null,"Paquets",null,null,null,null,null,null,null,null,null,5,null,null,null,10,null,null,null,null,null,null,null,null,null,6,1,2,2,1,1]

{"sheet":"Stock à réintégrer A","index":2,"n_rows":49,"n_cols":30,"rows_kept":49,"cut":false,"hidden":false,"merged":[[0,1,0,4],[46,22,47,22],[46,23,47,23],[46,24,47,24],[46,25,46,28],[46,29,47,29],[46,0,47,0],[46,1,46,4],[46,5,46,8],[46,9,46,12],[46,13,46,16],[46,21,47,21],[42,21,43,21],[42,22,43,22],[42,23,43,23],[42,24,43,24],[42,25,42,28],[42,29,43,29],[38,22,39,22],[38,23,39,23],[38,24,39,24],[38,25,38,28],[38,29,39,29],[38,21,39,21],[42,0,43,0],[42,1,42,4],[42,5,42,8],[42,9,42,12],[42,13,42,16],[38,0,39,0],[38,1,38,4],[38,5,38,8],[38,9,38,12],[38,13,38,16],[34,21,35,21],[34,22,35,22],[34,23,35,23],[34,24,35,24],[34,25,34,28],[34,29,35,29],[30,22,31,22],[30,23,31,23],[30,24,31,24],[30,25,30,28],[30,29,31,29],[30,21,31,21],[34,0,35,0],[34,1,34,4],[34,5,34,8],[34,9,34,12],[34,13,34,16],[30,0,31,0],[30,1,30,4],[30,5,30,8],[30,9,30,12],[30,13,30,16],[26,21,27,21],[26,22,27,22],[26,23,27,23],[26,24,27,24],[26,25,26,28],[26,29,27,29],[22,22,23,22],[22,23,23,23],[22,24,23,24],[22,25,22,28],[22,29,23,29],[22,21,23,21],[26,0,27,0],[26,1,26,4],[26,5,26,8],[26,9,26,12],[26,13,26,16],[22,0,23,0],[22,1,22,4],[22,5,22,8],[22,9,22,12],[22,13,22,16],[10,22,11,22],[18,23,19,23],[18,24,19,24],[18,25,18,28],[18,29,19,29],[14,22,15,22],[14,23,15,23],[14,24,15,24],[14,25,14,28],[14,29,15,29],[14,1,14,4],[14,5,14,8],[14,9,14,12],[14,13,14,16],[14,21,15,21],[10,0,11,0],[10,1,10,4],[10,5,10,8],[10,9,10,12],[10,13,10,16],[10,21,11,21],[18,0,19,0],[18,1,18,4],[18,5,18,8],[18,9,18,12],[18,13,18,16],[18,21,19,21],[18,22,19,22],[2,29,3,29],[6,0,7,0],[6,1,6,4],[6,5,6,8],[6,9,6,12],[6,13,6,16],[6,21,7,21],[6,22,7,22],[6,23,7,23],[6,24,7,24],[6,25,6,28],[6,29,7,29],[10,23,11,23],[10,24,11,24],[10,25,10,28],[10,29,11,29],[14,0,15,0],[1,1,1,26],[2,0,3,0],[2,1,2,4],[2,5,2,8],[2,9,2,12],[2,13,2,16],[2,21,3,21],[2,22,3,22],[2,23,3,23],[2,24,3,24],[2,25,2,28],[2,17,2,20],[42,17,42,20],[46,17,46,20],[6,17,6,20],[10,17,10,20],[14,17,14,20],[18,17,18,20],[22,17,22,20],[26,17,26,20],[30,17,30,20],[34,17,34,20],[38,17,38,20]]}
["Date:",{"$f":"'Stock avant commande A'!B1:E1","v":"2021-03-16"}]
[null,"Stock à réintégrer dans les chambres A"]
["M-F",null,null,null,null,"Change complet NUIT ",null,null,null,null,null,null,null,null,null,null,null,null,null,null,null,null,null,"Aleze           60 X90           ","Gants usage unique \n","Gants Vinyle                ",null,null,null,"MOUSSE LAVANTE\n"]
[null,null,null,null,null,null,null,"L",null,null,null,null,null,null,null,null,null,null,null,null,null,null,null,null,null,"S","M","L","XL"]
["Paquets",null,null,null,null,null,null,{"$f":"SUM('Stock avant commande A'!AQ5)-'Stock avant commande A'!H5","v":8},null,null,null,null,null,null,null,null,null,null,null,null,null,null,null,{"$f":"SUM('Stock avant commande A'!BG5)-'Stock avant commande A'!X5","v":1},{"$f":"SUM('Stock avant commande A'!BH5)-'Stock avant commande A'!Y5","v":6},{"$f":"SUM('Stock avant commande A'!BI5)-'Stock avant commande A'!Z5","v":1},{"$f":"SUM('Stock avant commande A'!BJ5)-'Stock avant commande A'!AA5","v":2},{"$f":"SUM('Stock avant commande A'!BK5)-'Stock avant commande A'!AB5","v":2},{"$f":"SUM('Stock avant commande A'!BL5)-'Stock avant commande A'!AC5","v":1},{"$f":"SUM('Stock avant commande A'!BM5)-'Stock avant commande A'!AD5","v":1}]
[]
["A",null,null,null,null,null,null,null,null,null,null,null,null,null,null,null,null,null,null,null,null,"ANAFORM EXTRA           ",null,null,"Gants usage unique \n","Gants Vinyle                ",null,null,null,"MOUSSE LAVANTE\n"]
[null,null,null,null,null,null,null,null,null,null,null,null,null,null,null,null,null,null,null,null,null,null,null,null,null,"S","M","L","XL"]
["Paquets",null,null,null,null,null,null,null,null,null,null,null,null,null,null,null,null,null,null,null,null,{"$f":"SUM('Stock avant commande A'!BE9)-'Stock avant commande A'!V9","v":2},null,null,{"$f":"SUM('Stock avant commande A'!BH9)-'Stock avant commande A'!Y9","v":6},{"$f":"SUM('Stock avant commande A'!BI9)-'Stock avant commande A'!Z9","v":1},{"$f":"SUM('Stock avant commande A'!BJ9)-'Stock avant commande A'!AA9","v":2},{"$f":"SUM('Stock avant commande A'!BK9)-'Stock avant commande A'!AB9","v":2},{"$f":"SUM('Stock avant commande A'!BL9)-'Stock avant commande A'!AC9","v":1},{"$f":"SUM('Stock avant commande A'!BM9)-'Stock avant commande A'!AD9","v":1}]
[]
["R",null,null,null,null,null,null,null,null,null,null,null,null,null,null,null,null,null,null,null,null,null,null,null,"Gants usage unique \n","Gants Vinyle                ",null,null,null,"MOUSSE LAVANTE\n"]
[null,null,null,null,null,null,null,null,null,null,null,null,null,null,null,null,null,null,null,null,null,null,null,null,null,"S","M","L","XL"]
["Paquets",null,null,null,null,null,null,null,null,null,null,null,null,null,null,null,null,null,null,null,null,null,null,null,{"$f":"SUM('Stock avant commande A'!BH13)-'Stock avant commande A'!Y13","v":6},{"$f":"SUM('Stock avant commande A'!BI13)-'Stock avant commande A'!Z13","v":1},{"$f":"SUM('Stock avant commande A'!BJ13)-'Stock avant commande A'!AA13","v":2},{"$f":"SUM('Stock avant commande A'!BK13)-'Stock avant commande A'!AB13","v":2},{"$f":"SUM('Stock avant commande A'!BL13)-'Stock avant commande A'!AC13","v":1},{"$f":"SUM('Stock avant commande A'!BM13)-'Stock avant commande A'!AD13","v":1}]
[]
["M","Change complet JOUR ",null,null,null,"Change complet NUIT ",null,null,null,null,null,null,null,null,null,null,null,null,null,null,null,null,null,null,"Gants usage unique \n","Gants Vinyle                ",null,null,null,"MOUSSE LAVANTE\n"]
[null,null,"M",null,null,null,"M",null,null,null,null,null,null,null,null,null,null,null,null,null,null,null,null,null,null,"S","M","L","XL"]
["Paquets",null,{"$f":"SUM('Stock avant commande A'!AL17)-'Stock avant commande A'!C17","v":5},null,null,null,{"$f":"SUM('Stock avant commande A'!AP17)-'Stock avant commande A'!G17","v":3},null,null,null,null,null,null,null,null,null,null,null,null,null,null,null,null,null,{"$f":"SUM('Stock avant commande A'!BH17)-'Stock avant commande A'!Y17","v":6},{"$f":"SUM('Stock avant commande A'!BI17)-'Stock avant commande A'!Z17","v":1},{"$f":"SUM('Stock avant commande A'!BJ17)-'Stock avant commande A'!AA17","v":2},{"$f":"SUM('Stock avant commande A'!BK17)-'Stock avant commande A'!AB17","v":2},{"$f":"SUM('Stock avant commande A'!BL17)-'Stock avant commande A'!AC17","v":1},{"$f":"SUM('Stock avant commande A'!BM17)-'Stock avant commande A'!AD17","v":1}]
[]
["J",null,null,null,null,"Change complet NUIT ",null,null,null,null,null,null,null,null,null,null,null,null,null,null,null,null,null,"Aleze           60 X90           ","Gants usage unique \n","Gants Vinyle                ",null,null,null,"MOUSSE LAVANTE\n"]
[null,null,null,null,null,null,"M",null,null,null,null,null,null,null,null,null,null,null,null,null,null,null,null,null,null,"S","M","L","XL"]
["Paquets",null,null,null,null,null,{"$f":"SUM('Stock avant commande A'!AP21)-'Stock avant commande A'!G21","v":8},null,null,null,null,null,null,null,null,null,null,null,null,null,null,null,null,{"$f":"SUM('Stock avant commande A'!BG21)-'Stock avant commande A'!X21","v":2},{"$f":"SUM('Stock avant commande A'!BH21)-'Stock avant commande A'!Y21","v":6},{"$f":"SUM('Stock avant commande A'!BI21)-'Stock avant commande A'!Z21","v":1},{"$f":"SUM('Stock avant commande A'!BJ21)-'Stock avant commande A'!AA21","v":2},{"$f":"SUM('Stock avant commande A'!BK21)-'Stock avant commande A'!AB21","v":2},{"$f":"SUM('Stock avant commande A'!BL21)-'Stock avant commande A'!AC21","v":1},{"$f":"SUM('Stock avant commande A'!BM21)-'Stock avant commande A'!AD21","v":1}]
[]
["M",null,null,null,null,null,null,null,null,null,null,null,null,"TENA\n",null,null,null,null,null,null,null,null,null,"Aleze           60 X90            ","Gants usage unique \n","Gants Vinyle                ",null,null,null,"MOUSSE LAVANTE\n"]
[null,null,null,null,null,null,null,null,null,null,null,null,null,null,null,"L",null,null,null,null,null,null,null,null,null,"S","M","L","XL"]
["Paquets",null,null,null,null,null,null,null,null,null,null,null,null,null,null,{"$f":"SUM('Stock avant commande A'!AY25)-'Stock avant commande A'!P25","v":8},null,null,null,null,null,null,null,{"$f":"SUM('Stock avant commande A'!BG25)-'Stock avant commande A'!X25","v":2},{"$f":"SUM('Stock avant commande A'!BH25)-'Stock avant commande A'!Y25","v":6},{"$f":"SUM('Stock avant commande A'!BI25)-'Stock avant commande A'!Z25","v":1},{"$f":"SUM('Stock avant commande A'!BJ25)-'Stock avant commande A'!AA25","v":2},{"$f":"SUM('Stock avant commande A'!BK25)-'Stock avant commande A'!AB25","v":2},{"$f":"SUM('Stock avant commande A'!BL25)-'Stock avant commande A'!AC25","v":1},{"$f":"SUM('Stock avant commande A'!BM25)-'Stock avant commande A'!AD25","v":1}]
[]
["Mi","Change complet JOUR ",null,null,null,null,null,null,null,null,null,null,null,"TENA\n",null,null,null,null,null,null,null,null,null,"Aleze           60 X90            ","Gants usage unique \n","Gants Vinyle                ",null,null,null,"MOUSSE LAVANTE\n"]
[null,null,null,"L",null,null,null,null,null,null,null,null,null,null,null,"L",null,null,null,null,null,null,null,null,null,"S","M","L","XL"]
["Paquets",null,null,{"$f":"SUM('Stock avant commande A'!AM29)-'Stock avant commande A'!D29","v":5},null,null,null,null,null,null,null,null,null,null,null,{"$f":"SUM('Stock avant commande A'!AY29)-'Stock avant commande A'!P29","v":2},null,null,null,null,null,null,null,{"$f":"SUM('Stock avant commande A'!BG29)-'Stock avant commande A'!X29","v":2},{"$f":"SUM('Stock avant commande A'!BH29)-'Stock avant commande A'!Y29","v":6},{"$f":"SUM('Stock avant commande A'!BI29)-'Stock avant commande A'!Z29","v":1},{"$f":"SUM('Stock avant commande A'!BJ29)-'Stock avant commande A'!AA29","v":2},{"$f":"SUM('Stock avant commande A'!BK29)-'Stock avant commande A'!AB29","v":2},{"$f":"SUM('Stock avant commande A'!BL29)-'Stock avant commande A'!AC29","v":1},{"$f":"SUM('Stock avant commande A'!BM29)-'Stock avant commande A'!AD29","v":1}]
[]
["Flo","Change complet JOUR ",null,null,null,null,null,null,null,null,null,null,null,null,null,null,null,null,null,null,null,null,null,"Aleze           60 X90            ","Gants usage unique \n","Gants Vinyle                ",null,null,null,"MOUSSE LAVANTE\n"]
[null,null,null,"L",null,null,null,null,null,null,null,null,null,null,null,null,null,null,null,null,null,null,null,null,null,"S","M","L","XL"]
["Paquets",null,null,{"$f":"SUM('Stock avant commande A'!AM33)-'Stock avant commande A'!D33","v":5},null,null,null,null,null,null,null,null,null,null,null,null,null,null,null,null,null,null,null,{"$f":"SUM('Stock avant commande A'!BG33)-'Stock avant commande A'!X33","v":2},{"$f":"SUM('Stock avant commande A'!BH33)-'Stock avant commande A'!Y33","v":6},{"$f":"SUM('Stock avant commande A'!BI33)-'Stock avant commande A'!Z33","v":1},{"$f":"SUM('Stock avant commande A'!BJ33)-'Stock avant commande A'!AA33","v":2},{"$f":"SUM('Stock avant commande A'!BK33)-'Stock avant commande A'!AB33","v":2},{"$f":"SUM('Stock avant commande A'!BL33)-'Stock avant commande A'!AC33","v":1},{"$f":"SUM('Stock avant commande A'!BM33)-'Stock avant commande A'!AD33","v":1}]
[]
["Nat",null,null,null,null,"Change complet NUIT ",null,null,null,null,null,null,null,"                                 ",null,null,null,"Pants                                       ",null,null,null,null,null,"Aleze           60 X90            ","Gants usage unique \n","Gants Vinyle                ",null,null,null,"MOUSSE LAVANTE\n"]
[null,null,null,null,null,null,null,"L",null,null,null,null,null,null,null,null,null,null,null,"L",null,null,null,null,null,"S","M","L","XL"]
["Paquets",null,null,null,null,null,null,{"$f":"SUM('Stock avant commande A'!AQ37)-'Stock avant commande A'!H37","v":3},null,null,null,null,null,null,null,null,null,null,null,{"$f":"SUM('Stock avant commande A'!BC37)-'Stock avant commande A'!P37","v":4},null,null,null,{"$f":"SUM('Stock avant commande A'!BG37)-'Stock avant commande A'!X37","v":1},{"$f":"SUM('Stock avant commande A'!BH37)-'Stock avant commande A'!Y37","v":6},{"$f":"SUM('Stock avant commande A'!BI37)-'Stock avant commande A'!Z37","v":1},{"$f":"SUM('Stock avant commande A'!BJ37)-'Stock avant commande A'!AA37","v":2},{"$f":"SUM('Stock avant commande A'!BK37)-'Stock avant commande A'!AB37","v":2},{"$f":"SUM('Stock avant commande A'!BL37)-'Stock avant commande A'!AC37","v":1},{"$f":"SUM('Stock avant commande A'!BM37)-'Stock avant commande A'!AD37","v":1}]
[]
["Ju",null,null,null,null,"Change complet NUIT ",null,null,null,null,null,null,null,null,null,null,null,null,null,null,null,null,null,null,"Gants usage unique \n","Gants Vinyle                ",null,null,null,"MOUSSE LAVANTE\n"]
[null,null,null,null,null,"S",null,null,null,null,null,null,null,null,null,null,null,null,null,null,null,null,null,null,null,"S","M","L","XL"]
["Paquets",null,null,null,null,{"$f":"SUM('Stock avant commande A'!AO41)-'Stock avant commande A'!F41","v":3},null,null,null,null,null,null,null,null,null,null,null,null,null,null,null,null,null,null,{"$f":"SUM('Stock avant commande A'!BH41)-'Stock avant commande A'!Y41","v":6},{"$f":"SUM('Stock avant commande A'!BI41)-'Stock avant commande A'!Z41","v":1},{"$f":"SUM('Stock avant commande A'!BJ41)-'Stock avant commande A'!AA41","v":2},{"$f":"SUM('Stock avant commande A'!BK41)-'Stock avant commande A'!AB41","v":2},{"$f":"SUM('Stock avant commande A'!BL41)-'Stock avant commande A'!AC41","v":1},{"$f":"SUM('Stock avant commande A'!BM41)-'Stock avant commande A'!AD41","v":1}]
[]
["JM",null,null,null,null,"Change complet NUIT ",null,null,null,null,null,null,null,null,null,null,null,null,null,null,null,null,null,"Aleze           60 X90            ","Gants usage unique \n","Gants Vinyle                ",null,null,null,"MOUSSE LAVANTE\n"]
[null,null,null,null,null,null,"M",null,null,null,null,null,null,null,null,null,null,null,null,null,null,null,null,null,null,"S","M","L","XL"]
["Paquets",null,null,null,null,null,9,null,null,null,null,null,null,null,null,null,null,null,null,null,null,null,null,{"$f":"SUM('Stock avant commande A'!BG45)-'Stock avant commande A'!X45","v":1},{"$f":"SUM('Stock avant commande A'!BH45)-'Stock avant commande A'!Y45","v":6},{"$f":"SUM('Stock avant commande A'!BI45)-'Stock avant commande A'!Z45","v":1},{"$f":"SUM('Stock avant commande A'!BJ45)-'Stock avant commande A'!AA45","v":2},{"$f":"SUM('Stock avant commande A'!BK45)-'Stock avant commande A'!AB45","v":2},{"$f":"SUM('Stock avant commande A'!BL45)-'Stock avant commande A'!AC45","v":1},{"$f":"SUM('Stock avant commande A'!BM45)-'Stock avant commande A'!AD45","v":1}]
[]
["S",null,null,null,null,null,null,null,null,"ID SLIP EXPERT\nMAXI PRIME",null,null,null,"TENA",null,null,null,null,null,null,null,null,null,null,"Gants usage unique \n","Gants Vinyle                ",null,null,null,"MOUSSE LAVANTE\n"]
[null,null,null,null,null,null,null,null,null,null,"M",null,null,null,"M",null,null,null,null,null,null,null,null,null,null,"S","M","L","XL"]
["Paquets",null,null,null,null,null,null,null,null,null,{"$f":"SUM('Stock avant commande A'!AT49)-'Stock avant commande A'!K49","v":5},null,null,null,{"$f":"SUM('Stock avant commande A'!AX49)-'Stock avant commande A'!O49","v":10},null,null,null,null,null,null,null,null,null,{"$f":"SUM('Stock avant commande A'!BH49)-'Stock avant commande A'!Y49","v":6},{"$f":"SUM('Stock avant commande A'!BI49)-'Stock avant commande A'!Z49","v":1},{"$f":"SUM('Stock avant commande A'!BJ49)-'Stock avant commande A'!AA49","v":2},{"$f":"SUM('Stock avant commande A'!BK49)-'Stock avant commande A'!AB49","v":2},{"$f":"SUM('Stock avant commande A'!BL49)-'Stock avant commande A'!AC49","v":1},{"$f":"SUM('Stock avant commande A'!BM49)-'Stock avant commande A'!AD49","v":1}]

{"sheet":"COMMANDE A","index":3,"n_rows":7,"n_cols":30,"rows_kept":7,"cut":false,"hidden":false,"merged":[[0,1,0,4],[1,0,1,29],[3,1,3,4],[3,17,3,20],[3,21,4,21],[3,22,4,22],[3,23,4,23],[3,24,4,24],[3,25,3,28],[3,29,4,29],[3,5,3,8],[3,13,3,16],[3,9,3,12]]}
["Date:",{"$f":"'Stock avant commande A'!B1:E1","v":"2021-03-16"}]
["Commande protections Unité A"]
[]
[null,"Change complet JOUR       (4 paquets par carton)",null,null,null,"Change complet NUIT       (4 paquets par carton)",null,null,null,"ID SLIP EXPERT\nMAXI PRIME\n(3 paquets par carton)",null,null,null,"TENA SLIP MAX\n(3 paquets par carton)",null,null,null,"Pants                                       (8 paquets par carton)",null,null,null,"Anaform Extra              (4 paquets par carton)","Aleze           60 X60            (4 paquets par carton)","Aleze           60 X90            (4 paquets par carton)","Gants usage unique (20 paquets \npar carton)","Gants Vinyle                      (10 boites \npar carton)",null,null,null,"Mousse lavante      (12 par carton)"]
[null,"S","M","L","XL","S","M","L","XL","S","M","L","XL","S","M","L","XL","S","M","L","XL",null,null,null,null,"S","M","L","XL"]
["Paquets",{"$f":"SUM('Stock à réintégrer A'!B5+'Stock à réintégrer A'!B9+'Stock à réintégrer A'!B13+'Stock à réintégrer A'!B17+'Stock à réintégrer A'!B21+'Stock à réintégrer A'!B25+'Stock à réintégrer A'!B29+'Stock à réintégrer A'!B33+'Stock à réintégrer A'!B37+'Stock à réintégrer A'!B41+'Stock à réintégrer A'!B45+'Stock à réintégrer A'!B49)","v":0},{"$f":"SUM('Stock à réintégrer A'!C5+'Stock à réintégrer A'!C9+'Stock à réintégrer A'!C13+'Stock à réintégrer A'!C17+'Stock à réintégrer A'!C21+'Stock à réintégrer A'!C25+'Stock à réintégrer A'!C29+'Stock à réintégrer A'!C33+'Stock à réintégrer A'!C37+'Stock à réintégrer A'!C41+'Stock à réintégrer A'!C45+'Stock à réintégrer A'!C49)","v":5},{"$f":"SUM('Stock à réintégrer A'!D5+'Stock à réintégrer A'!D9+'Stock à réintégrer A'!D13+'Stock à réintégrer A'!D17+'Stock à réintégrer A'!D21+'Stock à réintégrer A'!D25+'Stock à réintégrer A'!D29+'Stock à réintégrer A'!D33+'Stock à réintégrer A'!D37+'Stock à réintégrer A'!D41+'Stock à réintégrer A'!D45+'Stock à réintégrer A'!D49)","v":10},{"$f":"SUM('Stock à réintégrer A'!E5+'Stock à réintégrer A'!E9+'Stock à réintégrer A'!E13+'Stock à réintégrer A'!E17+'Stock à réintégrer A'!E21+'Stock à réintégrer A'!E25+'Stock à réintégrer A'!E29+'Stock à réintégrer A'!E33+'Stock à réintégrer A'!E37+'Stock à réintégrer A'!E41+'Stock à réintégrer A'!E45+'Stock à réintégrer A'!E49)","v":0},{"$f":"SUM('Stock à réintégrer A'!F5+'Stock à réintégrer A'!F9+'Stock à réintégrer A'!F13+'Stock à réintégrer A'!F17+'Stock à réintégrer A'!F21+'Stock à réintégrer A'!F25+'Stock à réintégrer A'!F29+'Stock à réintégrer A'!F33+'Stock à réintégrer A'!F37+'Stock à réintégrer A'!F41+'Stock à réintégrer A'!F45+'Stock à réintégrer A'!F49)","v":3},{"$f":"SUM('Stock à réintégrer A'!G5+'Stock à réintégrer A'!G9+'Stock à réintégrer A'!G13+'Stock à réintégrer A'!G17+'Stock à réintégrer A'!G21+'Stock à réintégrer A'!G25+'Stock à réintégrer A'!G29+'Stock à réintégrer A'!G33+'Stock à réintégrer A'!G37+'Stock à réintégrer A'!G41+'Stock à réintégrer A'!G45+'Stock à réintégrer A'!G49)","v":20},{"$f":"SUM('Stock à réintégrer A'!H5+'Stock à réintégrer A'!H9+'Stock à réintégrer A'!H13+'Stock à réintégrer A'!H17+'Stock à réintégrer A'!H21+'Stock à réintégrer A'!H25+'Stock à réintégrer A'!H29+'Stock à réintégrer A'!H33+'Stock à réintégrer A'!H37+'Stock à réintégrer A'!H41+'Stock à réintégrer A'!H45+'Stock à réintégrer A'!H49)","v":11},{"$f":"SUM('Stock à réintégrer A'!I5+'Stock à réintégrer A'!I9+'Stock à réintégrer A'!I13+'Stock à réintégrer A'!I17+'Stock à réintégrer A'!I21+'Stock à réintégrer A'!I25+'Stock à réintégrer A'!I29+'Stock à réintégrer A'!I33+'Stock à réintégrer A'!I37+'Stock à réintégrer A'!I41+'Stock à réintégrer A'!I45+'Stock à réintégrer A'!I49)","v":0},{"$f":"SUM('Stock à réintégrer A'!J5+'Stock à réintégrer A'!J9+'Stock à réintégrer A'!J13+'Stock à réintégrer A'!J17+'Stock à réintégrer A'!J21+'Stock à réintégrer A'!J25+'Stock à réintégrer A'!J29+'Stock à réintégrer A'!J33+'Stock à réintégrer A'!J37+'Stock à réintégrer A'!J41+'Stock à réintégrer A'!J45+'Stock à réintégrer A'!J49)","v":0},{"$f":"SUM('Stock à réintégrer A'!K5+'Stock à réintégrer A'!K9+'Stock à réintégrer A'!K13+'Stock à réintégrer A'!K17+'Stock à réintégrer A'!K21+'Stock à réintégrer A'!K25+'Stock à réintégrer A'!K29+'Stock à réintégrer A'!K33+'Stock à réintégrer A'!K37+'Stock à réintégrer A'!K41+'Stock à réintégrer A'!K45+'Stock à réintégrer A'!K49)","v":5},{"$f":"SUM('Stock à réintégrer A'!L5+'Stock à réintégrer A'!L9+'Stock à réintégrer A'!L13+'Stock à réintégrer A'!L17+'Stock à réintégrer A'!L21+'Stock à réintégrer A'!L25+'Stock à réintégrer A'!L29+'Stock à réintégrer A'!L33+'Stock à réintégrer A'!L37+'Stock à réintégrer A'!L41+'Stock à réintégrer A'!L45+'Stock à réintégrer A'!L49)","v":0},{"$f":"SUM('Stock à réintégrer A'!M5+'Stock à réintégrer A'!M9+'Stock à réintégrer A'!M13+'Stock à réintégrer A'!M17+'Stock à réintégrer A'!M21+'Stock à réintégrer A'!M25+'Stock à réintégrer A'!M29+'Stock à réintégrer A'!M33+'Stock à réintégrer A'!M37+'Stock à réintégrer A'!M41+'Stock à réintégrer A'!M45+'Stock à réintégrer A'!M49)","v":0},{"$f":"SUM('Stock à réintégrer A'!N5+'Stock à réintégrer A'!N9+'Stock à réintégrer A'!N13+'Stock à réintégrer A'!N17+'Stock à réintégrer A'!N21+'Stock à réintégrer A'!N25+'Stock à réintégrer A'!N29+'Stock à réintégrer A'!N33+'Stock à réintégrer A'!N37+'Stock à réintégrer A'!N41+'Stock à réintégrer A'!N45+'Stock à réintégrer A'!N49)","v":0},{"$f":"SUM('Stock à réintégrer A'!O5+'Stock à réintégrer A'!O9+'Stock à réintégrer A'!O13+'Stock à réintégrer A'!O17+'Stock à réintégrer A'!O21+'Stock à réintégrer A'!O25+'Stock à réintégrer A'!O29+'Stock à réintégrer A'!O33+'Stock à réintégrer A'!O37+'Stock à réintégrer A'!O41+'Stock à réintégrer A'!O45+'Stock à réintégrer A'!O49)","v":10},{"$f":"SUM('Stock à réintégrer A'!P5+'Stock à réintégrer A'!P9+'Stock à réintégrer A'!P13+'Stock à réintégrer A'!P17+'Stock à réintégrer A'!P21+'Stock à réintégrer A'!P25+'Stock à réintégrer A'!P29+'Stock à réintégrer A'!P33+'Stock à réintégrer A'!P37+'Stock à réintégrer A'!P41+'Stock à réintégrer A'!P45+'Stock à réintégrer A'!P49)","v":10},{"$f":"SUM('Stock à réintégrer A'!Q5+'Stock à réintégrer A'!Q9+'Stock à réintégrer A'!Q13+'Stock à réintégrer A'!Q17+'Stock à réintégrer A'!Q21+'Stock à réintégrer A'!Q25+'Stock à réintégrer A'!Q29+'Stock à réintégrer A'!Q33+'Stock à réintégrer A'!Q37+'Stock à réintégrer A'!Q41+'Stock à réintégrer A'!Q45+'Stock à réintégrer A'!Q49)","v":0},{"$f":"SUM('Stock à réintégrer A'!R5+'Stock à réintégrer A'!R9+'Stock à réintégrer A'!R13+'Stock à réintégrer A'!R17+'Stock à réintégrer A'!R21+'Stock à réintégrer A'!R25+'Stock à réintégrer A'!R29+'Stock à réintégrer A'!R33+'Stock à réintégrer A'!R37+'Stock à réintégrer A'!R41+'Stock à réintégrer A'!R45+'Stock à réintégrer A'!R49)","v":0},{"$f":"SUM('Stock à réintégrer A'!S5+'Stock à réintégrer A'!S9+'Stock à réintégrer A'!S13+'Stock à réintégrer A'!S17+'Stock à réintégrer A'!S21+'Stock à réintégrer A'!S25+'Stock à réintégrer A'!S29+'Stock à réintégrer A'!S33+'Stock à réintégrer A'!S37+'Stock à réintégrer A'!S41+'Stock à réintégrer A'!S45+'Stock à réintégrer A'!S49)","v":0},{"$f":"SUM('Stock à réintégrer A'!T5+'Stock à réintégrer A'!T9+'Stock à réintégrer A'!T13+'Stock à réintégrer A'!T17+'Stock à réintégrer A'!T21+'Stock à réintégrer A'!T25+'Stock à réintégrer A'!T29+'Stock à réintégrer A'!T33+'Stock à réintégrer A'!T37+'Stock à réintégrer A'!T41+'Stock à réintégrer A'!T45+'Stock à réintégrer A'!T49)","v":4},{"$f":"SUM('Stock à réintégrer A'!U5+'Stock à réintégrer A'!U9+'Stock à réintégrer A'!U13+'Stock à réintégrer A'!U17+'Stock à réintégrer A'!U21+'Stock à réintégrer A'!U25+'Stock à réintégrer A'!U29+'Stock à réintégrer A'!U33+'Stock à réintégrer A'!U37+'Stock à réintégrer A'!U41+'Stock à réintégrer A'!U45+'Stock à réintégrer A'!U49)","v":0},{"$f":"SUM('Stock à réintégrer A'!V5+'Stock à réintégrer A'!V9+'Stock à réintégrer A'!V13+'Stock à réintégrer A'!V17+'Stock à réintégrer A'!V21+'Stock à réintégrer A'!V25+'Stock à réintégrer A'!V29+'Stock à réintégrer A'!V33+'Stock à réintégrer A'!V37+'Stock à réintégrer A'!V41+'Stock à réintégrer A'!V45+'Stock à réintégrer A'!V49)","v":2},{"$f":"SUM('Stock à réintégrer A'!W5+'Stock à réintégrer A'!W9+'Stock à réintégrer A'!W13+'Stock à réintégrer A'!W17+'Stock à réintégrer A'!W21+'Stock à réintégrer A'!W25+'Stock à réintégrer A'!W29+'Stock à réintégrer A'!W33+'Stock à réintégrer A'!W37+'Stock à réintégrer A'!W41+'Stock à réintégrer A'!W45+'Stock à réintégrer A'!W49)","v":0},{"$f":"SUM('Stock à réintégrer A'!X5+'Stock à réintégrer A'!X9+'Stock à réintégrer A'!X13+'Stock à réintégrer A'!X17+'Stock à réintégrer A'!X21+'Stock à réintégrer A'!X25+'Stock à réintégrer A'!X29+'Stock à réintégrer A'!X33+'Stock à réintégrer A'!X37+'Stock à réintégrer A'!X41+'Stock à réintégrer A'!X45+'Stock à réintégrer A'!X49)","v":11},{"$f":"SUM('Stock à réintégrer A'!Y5+'Stock à réintégrer A'!Y9+'Stock à réintégrer A'!Y13+'Stock à réintégrer A'!Y17+'Stock à réintégrer A'!Y21+'Stock à réintégrer A'!Y25+'Stock à réintégrer A'!Y29+'Stock à réintégrer A'!Y33+'Stock à réintégrer A'!Y37+'Stock à réintégrer A'!Y41+'Stock à réintégrer A'!Y45+'Stock à réintégrer A'!Y49)","v":72},{"$f":"SUM('Stock à réintégrer A'!Z5+'Stock à réintégrer A'!Z9+'Stock à réintégrer A'!Z13+'Stock à réintégrer A'!Z17+'Stock à réintégrer A'!Z21+'Stock à réintégrer A'!Z25+'Stock à réintégrer A'!Z29+'Stock à réintégrer A'!Z33+'Stock à réintégrer A'!Z37+'Stock à réintégrer A'!Z41+'Stock à réintégrer A'!Z45+'Stock à réintégrer A'!Z49)","v":12},{"$f":"SUM('Stock à réintégrer A'!AA5+'Stock à réintégrer A'!AA9+'Stock à réintégrer A'!AA13+'Stock à réintégrer A'!AA17+'Stock à réintégrer A'!AA21+'Stock à réintégrer A'!AA25+'Stock à réintégrer A'!AA29+'Stock à réintégrer A'!AA33+'Stock à réintégrer A'!AA37+'Stock à réintégrer A'!AA41+'Stock à réintégrer A'!AA45+'Stock à réintégrer A'!AA49)","v":24},{"$f":"SUM('Stock à réintégrer A'!AB5+'Stock à réintégrer A'!AB9+'Stock à réintégrer A'!AB13+'Stock à réintégrer A'!AB17+'Stock à réintégrer A'!AB21+'Stock à réintégrer A'!AB25+'Stock à réintégrer A'!AB29+'Stock à réintégrer A'!AB33+'Stock à réintégrer A'!AB37+'Stock à réintégrer A'!AB41+'Stock à réintégrer A'!AB45+'Stock à réintégrer A'!AB49)","v":24},{"$f":"SUM('Stock à réintégrer A'!AC5+'Stock à réintégrer A'!AC9+'Stock à réintégrer A'!AC13+'Stock à réintégrer A'!AC17+'Stock à réintégrer A'!AC21+'Stock à réintégrer A'!AC25+'Stock à réintégrer A'!AC29+'Stock à réintégrer A'!AC33+'Stock à réintégrer A'!AC37+'Stock à réintégrer A'!AC41+'Stock à réintégrer A'!AC45+'Stock à réintégrer A'!AC49)","v":12},{"$f":"SUM('Stock à réintégrer A'!AD5+'Stock à réintégrer A'!AD9+'Stock à réintégrer A'!AD13+'Stock à réintégrer A'!AD17+'Stock à réintégrer A'!AD21+'Stock à réintégrer A'!AD25+'Stock à réintégrer A'!AD29+'Stock à réintégrer A'!AD33+'Stock à réintégrer A'!AD37+'Stock à réintégrer A'!AD41+'Stock à réintégrer A'!AD45+'Stock à réintégrer A'!AD49)","v":12}]
["Cartons",{"$f":"ROUNDUP(SUM(B6)/4,0)","v":0},2,{"$f":"ROUNDUP(SUM(D6)/4,0)","v":3},0,1,5,3,0,{"$f":"ROUNDUP(SUM(J6)/3,0)","v":0},{"$f":"ROUNDUP(SUM(K6)/3,0)","v":2},{"$f":"ROUNDUP(SUM(L6)/3,0)","v":0},{"$f":"ROUNDUP(SUM(M6)/3,0)","v":0},0,{"$f":"ROUNDUP(SUM(O6)/3,0)","v":4},{"$f":"ROUNDUP(SUM(P6)/3,0)","v":4},0,{"$f":"ROUNDUP(SUM(R6)/8,0)","v":0},{"$f":"ROUNDUP(SUM(S6)/8,0)","v":0},{"$f":"ROUNDUP(SUM(T6)/8,0)","v":1},{"$f":"ROUNDUP(SUM(U6)/8,0)","v":0},1,0,3,{"$f":"ROUNDUP(SUM(Y6)/20,0)","v":4},{"$f":"ROUNDUP(SUM(Z6)/10,0)","v":2},{"$f":"ROUNDUP(SUM(AA6)/10,0)","v":3},{"$f":"ROUNDUP(SUM(AB6)/10,0)","v":3},{"$f":"ROUNDUP(SUM(AC6)/10,0)","v":2},{"$f":"ROUNDUP(SUM(AD6)/12,0)","v":1}]

{"sheet":"Stock avant commande E","index":4,"n_rows":49,"n_cols":65,"rows_kept":49,"cut":false,"hidden":true,"merged":[[2,44,2,47],[2,48,2,51],[0,1,0,4],[1,1,1,26],[2,0,3,0],[2,1,2,4],[2,5,2,8],[2,9,2,12],[2,13,2,16],[2,21,3,21],[2,22,3,22],[2,23,3,23],[2,24,3,24],[2,25,2,28],[2,60,2,63],[2,64,3,64],[6,0,7,0],[6,1,6,4],[6,5,6,8],[6,9,6,12],[6,13,6,16],[6,21,7,21],[6,22,7,22],[6,23,7,23],[6,24,7,24],[6,25,6,28],[6,29,7,29],[6,36,6,39],[6,40,6,43],[6,44,6,47],[2,52,2,55],[2,56,3,56],[2,57,3,57],[2,58,3,58],[2,59,3,59],[2,29,3,29],[2,36,2,39],[2,40,2,43],[6,59,7,59],[6,60,6,63],[6,64,7,64],[10,0,11,0],[10,1,10,4],[10,5,10,8],[10,9,10,12],[10,13,10,16],[10,21,11,21],[10,22,11,22],[10,23,11,23],[10,24,11,24],[10,25,10,28],[10,29,11,29],[10,36,10,39],[10,40,10,43],[6,48,6,51],[6,52,6,55],[6,56,7,56],[6,57,7,57],[6,58,7,58],[10,58,11,58],[10,59,11,59],[10,60,10,63],[10,64,11,64],[14,0,15,0],[14,1,14,4],[14,5,14,8],[14,9,14,12],[14,13,14,16],[14,21,15,21],[14,22,15,22],[14,23,15,23],[14,24,15,24],[14,25,14,28],[14,29,15,29],[14,36,14,39],[10,44,10,47],[10,48,10,51],[10,52,10,55],[10,56,11,56],[10,57,11,57],[14,57,15,57],[14,58,15,58],[14,59,15,59],[14,60,14,63],[14,64,15,64],[14,40,14,43],[14,44,14,47],[14,48,14,51],[14,52,14,55],[14,56,15,56],[18,44,18,47],[18,48,18,51],[18,21,19,21],[18,22,19,22],[18,23,19,23],[18,24,19,24],[18,25,18,28],[18,0,19,0],[18,1,18,4],[18,5,18,8],[18,9,18,12],[18,13,18,16],[18,60,18,63],[18,64,19,64],[22,0,23,0],[22,1,22,4],[22,5,22,8],[22,9,22,12],[22,13,22,16],[22,21,23,21],[22,22,23,22],[22,23,23,23],[22,24,23,24],[22,25,22,28],[22,29,23,29],[22,36,22,39],[22,40,22,43],[22,44,22,47],[18,52,18,55],[18,56,19,56],[18,57,19,57],[18,58,19,58],[18,59,19,59],[18,29,19,29],[18,36,18,39],[18,40,18,43],[22,59,23,59],[22,60,22,63],[22,64,23,64],[26,0,27,0],[26,1,26,4],[26,5,26,8],[26,9,26,12],[26,13,26,16],[26,21,27,21],[26,22,27,22],[26,23,27,23],[26,24,27,24],[26,25,26,28],[26,29,27,29],[26,36,26,39],[26,40,26,43],[22,48,22,51],[22,52,22,55],[22,56,23,56],[22,57,23,57],[22,58,23,58],[26,58,27,58],[26,59,27,59],[26,60,26,63],[26,64,27,64],[30,0,31,0],[30,1,30,4],[30,5,30,8],[30,9,30,12],[30,13,30,16],[30,21,31,21],[30,22,31,22],[30,23,31,23],[30,24,31,24],[30,25,30,28],[30,29,31,29],[30,36,30,39],[26,44,26,47],[26,48,26,51],[26,52,26,55],[26,56,27,56],[26,57,27,57],[30,57,31,57],[30,64,31,64],[30,40,30,43],[30,44,30,47],[30,48,30,51],[30,52,30,55],[30,56,31,56],[34,59,35,59],[34,29,35,29],[34,36,34,39],[34,40,34,43],[34,44,34,47],[34,48,34,51],[34,64,35,64],[34,58,35,58],[38,24,39,24],[34,0,35,0],[34,1,34,4],[34,5,34,8],[34,9,34,12],[34,13,34,16],[30,58,31,58],[30,59,31,59],[30,60,30,63],[34,21,35,21],[34,22,35,22],[34,23,35,23],[34,24,35,24],[34,25,34,28],[38,58,39,58],[34,60,34,63],[38,25,38,28],[38,29,39,29],[38,36,38,39],[38,40,38,43],[38,44,38,47],[34,52,34,55],[34,56,35,56],[34,57,35,57],[46,40,46,43],[38,59,39,59],[38,60,38,63],[38,64,39,64],[42,59,43,59],[42,60,42,63],[42,40,42,43],[42,0,43,0],[42,1,42,4],[42,5,42,8],[42,9,42,12],[42,13,42,16],[42,21,43,21],[42,22,43,22],[42,23,43,23],[42,24,43,24],[38,0,39,0],[38,1,38,4],[38,5,38,8],[38,9,38,12],[38,13,38,16],[38,21,39,21],[38,22,39,22],[38,23,39,23],[46,58,47,58],[38,57,39,57],[46,44,46,47],[46,48,46,51],[46,52,46,55],[46,56,47,56],[42,64,43,64],[38,48,38,51],[38,52,38,55],[38,56,39,56],[46,59,47,59],[46,60,46,63],[46,64,47,64],[42,58,43,58],[46,0,47,0],[46,1,46,4],[46,5,46,8],[46,9,46,12],[46,13,46,16],[46,21,47,21],[46,22,47,22],[46,23,47,23],[46,24,47,24],[46,25,46,28],[46,29,47,29],[46,36,46,39],[42,44,42,47],[42,48,42,51],[42,52,42,55],[42,56,43,56],[42,57,43,57],[2,17,2,20],[6,17,6,20],[10,17,10,20],[14,17,14,20],[18,17,18,20],[22,17,22,20],[26,17,26,20],[30,17,30,20],[34,17,34,20],[38,17,38,20],[42,17,42,20],[46,17,46,20],[46,57,47,57],[42,25,42,28],[42,29,43,29],[42,36,42,39]]}
["Date:","2021-03-31"]
[null,"STOCK AVANT COMMANDE E"]
["D",null,null,null,null,"Change complet NUIT  (6)",null,null,null,null,null,null,null,null,null,null,null,null,null,null,null,null,null,"Aleze           60 X90            (1)","Gants usage unique \n(5)","Gants Vinyle\n(2)  (2)  (2)  (2)                ",null,null,null,"MOUSSE LAVANTE\n(1)",null,null,null,null,null,null,null,null,null,null,"Change complet NUIT       (4 paquets par carton)",null,null,null,null,null,null,null,null,null,null,null,null,null,null,null,null,null,"Aleze           60 X90            (4 paquets par carton)","Gants usage unique (20 paquets \npar carton)","Gants Vinyle                      (10 boites \npar carton)",null,null,null,"Mousse lavante      (12 par carton)"]
[null,null,null,null,null,null,"M",null,null,null,null,null,null,null,null,null,null,null,null,null,null,null,null,null,null,"S","M","L","XL",null,null,null,null,null,null,null,null,null,null,null,null,null,"L",null,null,null,null,null,null,null,null,null,null,null,null,null,null,null,null,null,"S","M","L","XL"]
["Paquets",null,null,null,null,null,null,null,null,null,null,null,null,null,null,null,null,null,null,null,null,null,null,null,null,null,null,null,null,null,null,null,null,null,null,"Paquets",null,null,null,null,null,null,6,null,null,null,null,null,null,null,null,null,null,null,null,null,null,null,1,5,2,2,2,2,1]
[]
["S",null,null,null,null,"Change complet NUIT  (6)",null,null,null,null,null,null,null,null,null,null,null,null,null,null,null,null,null,"Aleze           60 X90            (1)","Gants usage unique \n(5)","Gants Vinyle\n(2)  (2)  (2)  (2)                ",null,null,null,"MOUSSE LAVANTE\n(1)",null,null,null,null,null,null,null,null,null,null,"Change complet NUIT       ",null,null,null,null,null,null,null,null,null,null,null,null,null,null,null,null,null,"Aleze           60 X90            (1)","Gants usage unique (20 paquets \npar carton)","Gants Vinyle                      (10 boites \npar carton)",null,null,null,"Mousse lavante      (12 par carton)"]
[null,null,null,null,null,null,null,null,null,null,null,null,null,null,null,null,null,null,null,null,null,null,null,null,null,"S","M","L","XL",null,null,null,null,null,null,null,null,null,null,null,null,"M",null,null,null,null,null,null,null,null,null,null,null,null,null,null,null,null,null,null,"S","M","L","XL"]
["Paquets",null,null,null,null,null,null,null,null,null,null,null,null,null,null,null,null,null,null,null,null,null,null,null,null,null,null,null,null,null,null,null,null,null,null,"Paquets",null,null,null,null,null,6,null,null,null,null,null,null,null,null,null,null,null,null,null,null,null,null,1,5,2,2,2,2,1]
[]
["J-M",null,null,null,null,null,null,null,null,null,null,null,null,null,null,null,null,null,null,null,null,null,null,null,"Gants usage unique \n(5)","Gants Vinyle\n(2)  (2)  (2)  (2)                ",null,null,null,"MOUSSE LAVANTE\n(1)",null,null,null,null,null,null,null,null,null,null,null,null,null,null,null,null,null,null,null,null,null,null,null,null,null,null,null,null,null,"Gants usage unique (20 paquets \npar carton)","Gants Vinyle                      (10 boites \npar carton)",null,null,null,"Mousse lavante      (12 par carton)"]
[null,null,null,null,null,null,null,null,null,null,null,null,null,null,null,null,null,null,null,null,null,null,null,null,null,"S","M","L","XL",null,null,null,null,null,null,null,null,null,null,null,null,null,null,null,null,null,null,null,null,null,null,null,null,null,null,null,null,null,null,null,"S","M","L","XL"]
["Paquets",null,null,null,null,null,null,null,null,null,null,null,null,null,null,null,null,null,null,null,null,null,null,null,null,null,null,null,null,null,null,null,null,null,null,"Paquets",null,null,null,null,null,null,null,null,null,null,null,null,null,null,null,null,null,null,null,null,null,null,null,5,2,2,2,2,1]
[]
["F",null,null,null,null,null,null,null,null,null,null,null,null,null,null,null,null,null,null,null,null,null,null,"Aleze           60 X90            (1)","Gants usage unique \n(5)","Gants Vinyle\n(2)  (2)  (2)  (2)                ",null,null,null,"MOUSSE LAVANTE\n(1)",null,null,null,null,null,null,null,null,null,null,null,null,null,null,null,null,null,null,null,null,null,null,null,null,null,null,null,null,"Aleze           60 X90            (4 paquets par carton)","Gants usage unique (20 paquets \npar carton)","Gants Vinyle                      (10 boites \npar carton)",null,null,null,"Mousse lavante      (12 par carton)"]
[null,null,null,null,null,null,null,null,null,null,null,null,null,null,null,null,null,null,null,null,null,null,null,null,null,"S","M","L","XL",null,null,null,null,null,null,null,null,null,null,null,null,null,null,null,null,null,null,null,null,null,null,null,null,null,null,null,null,null,null,null,"S","M","L","XL"]
["Paquets",null,null,null,null,null,null,null,null,null,null,null,null,null,null,null,null,null,null,null,null,null,null,null,null,null,null,null,null,null,null,null,null,null,null,"Paquets",null,null,null,null,null,null,null,null,null,null,null,null,null,null,null,null,null,null,null,null,null,null,1,5,2,2,2,2,1]
[]
["P",null,null,null,null,null,null,null,null,null,null,null,null,null,null,null,null,null,null,null,null,null,null,null,"Gants usage unique \n(5)","Gants Vinyle\n(2)  (2)  (2)  (2)                ",null,null,null,"MOUSSE LAVANTE\n(1)",null,null,null,null,null,null,null,null,null,null,null,null,null,null,null,null,null,null,null,null,null,null,null,null,null,null,null,null,null,"Gants usage unique (20 paquets \npar carton)","Gants Vinyle                      (10 boites \npar carton)",null,null,null,"Mousse lavante      (12 par carton)"]
[null,null,null,null,null,null,null,null,null,null,null,null,null,null,null,null,null,null,null,null,null,null,null,null,null,"S","M","L","XL",null,null,null,null,null,null,null,null,null,null,null,null,null,null,null,null,null,null,null,null,null,null,null,null,null,null,null,null,null,null,null,"S","M","L","XL"]
["Paquets",null,null,null,null,null,null,null,null,null,null,null,null,null,null,null,null,null,null,null,null,null,null,null,null,null,null,null,null,null,null,null,null,null,null,"Paquets",null,null,null,null,null,null,null,null,null,null,null,null,null,null,null,null,null,null,null,null,null,null,null,5,2,2,2,2,1]
[]
["A",null,null,null,null,"Change complet NUIT  (3)",null,null,null,"ID SLIP EXPERT\nMAXI PRIME (6)",null,null,null,null,null,null,null,null,null,null,null,null,null,"Aleze           60 X90            (1)","Gants usage unique \n(5)","Gants Vinyle\n(2)  (2)  (2)  (2)                ",null,null,null,"MOUSSE LAVANTE\n(1)",null,null,null,null,null,null,null,null,null,null,"Change complet NUIT       ",null,null,null,"ID SLIP EXPERT\nMAXI PRIME",null,null,null,null,null,null,null,null,null,null,null,null,null,"Aleze           60 X90            (4 paquets par carton)","Gants usage unique (20 paquets \npar carton)","Gants Vinyle                      (10 boites \npar carton)",null,null,null,"Mousse lavante      (12 par carton)"]
[null,null,null,null,null,null,"M",null,null,null,"M",null,null,null,null,null,null,null,null,null,null,null,null,null,null,"S","M","L","XL",null,null,null,null,null,null,null,null,null,null,null,null,"M",null,null,null,"M",null,null,null,null,null,null,null,null,null,null,null,null,null,null,"S","M","L","XL"]
["Paquets",null,null,null,null,null,null,null,null,null,null,null,null,null,null,null,null,null,null,null,null,null,null,null,null,null,null,null,null,null,null,null,null,null,null,"Paquets",null,null,null,null,null,3,null,null,null,6,null,null,null,null,null,null,null,null,null,null,null,null,1,5,2,2,2,2,1]
[]
["P",null,null,null,null,"Change complet NUIT  (9)",null,null,null,null,null,null,null,null,null,null,null,null,null,null,null,null,null,"Aleze           60 X90            (2)","Gants usage unique \n(5)","Gants Vinyle\n(2)  (2)  (2)  (2)                ",null,null,null,"MOUSSE LAVANTE\n(1)",null,null,null,null,null,null,null,null,null,null,"Change complet NUIT       ",null,null,null,null,null,null,null,null,null,null,null,null,null,null,null,null,null,"Aleze           60 X90            (4 paquets par carton)","Gants usage unique (20 paquets \npar carton)","Gants Vinyle                      (10 boites \npar carton)",null,null,null,"Mousse lavante      (12 par carton)"]
[null,null,null,null,null,null,null,null,"XL",null,null,null,null,null,null,null,null,null,null,null,null,null,null,null,null,"S","M","L","XL",null,null,null,null,null,null,null,null,null,null,null,null,null,null,"XL",null,null,null,null,null,null,null,null,null,null,null,null,null,null,null,null,"S","M","L","XL"]
["Paquets",null,null,null,null,null,null,null,null,null,null,null,null,null,null,null,null,null,null,null,null,null,null,null,null,null,null,null,null,null,null,null,null,null,null,"Paquets",null,null,null,null,null,null,null,9,null,null,null,null,null,null,null,null,null,null,null,null,null,null,2,5,2,2,2,2,1]
[]
["Acc temp",null,null,null,null,null,null,null,null,null,null,null,null,null,null,null,null,null,null,null,null,null,null,"Aleze           60 X90            (1)","Gants usage unique \n(5)","Gants Vinyle\n(2)  (2)  (2)  (2)                ",null,null,null,"MOUSSE LAVANTE\n(1)",null,null,null,null,null,null,null,null,null,null,null,null,null,null,null,null,null,null,null,null,null,null,null,null,null,null,null,null,"Aleze           60 X90            (4 paquets par carton)","Gants usage unique (20 paquets \npar carton)","Gants Vinyle                      (10 boites \npar carton)",null,null,null,"Mousse lavante      (12 par carton)"]
[null,null,null,null,null,null,null,null,null,null,null,null,null,null,null,null,null,null,null,null,null,null,null,null,null,"S","M","L","XL",null,null,null,null,null,null,null,null,null,null,null,null,null,null,null,null,null,null,null,null,null,null,null,null,null,null,null,null,null,null,null,"S","M","L","XL"]
["Paquets",null,null,null,null,null,null,null,null,null,null,null,null,null,null,null,null,null,null,null,null,null,null,null,null,null,null,null,null,null,null,null,null,null,null,"Paquets",null,null,null,null,null,null,null,null,null,null,null,null,null,null,null,null,null,null,null,null,null,null,1,5,2,2,2,2,1]
[]
["K",null,null,null,null,"Change complet NUIT  (6)",null,null,null,null,null,null,null,null,null,null,null,null,null,null,null,null,null,"Aleze           60 X90            (1)","Gants usage unique \n(5)","Gants Vinyle\n(2)  (2)  (2)  (2)                ",null,null,null,"MOUSSE LAVANTE\n(1)",null,null,null,null,null,null,null,null,null,null,"Change complet NUIT       ",null,null,null,null,null,null,null,null,null,null,null,null,null,null,null,null,null,"Aleze           60 X90            (4 paquets par carton)","Gants usage unique (20 paquets \npar carton)","Gants Vinyle                      (10 boites \npar carton)",null,null,null,"Mousse lavante      (12 par carton)"]
[null,null,null,null,null,null,"M",null,null,null,null,null,null,null,null,null,null,null,null,null,null,null,null,null,null,"S","M","L","XL",null,null,null,null,null,null,null,null,null,null,null,null,"M",null,null,null,null,null,null,null,null,null,null,null,null,null,null,null,null,null,null,"S","M","L","XL"]
["Paquets",null,null,null,null,null,null,null,null,null,null,null,null,null,null,null,null,null,null,null,null,null,null,null,null,null,null,null,null,null,null,null,null,null,null,"Paquets",null,null,null,null,null,6,null,null,null,null,null,null,null,null,null,null,null,null,null,null,null,null,1,5,2,2,2,2,1]
[]
["F",null,null,null,null,"Change complet NUIT  (4)",null,null,null,"ID SLIP EXPERT\nMAXI PRIME (3)",null,null,null,null,null,null,null,null,null,null,null,null,null,"Aleze           60 X90            (1)","Gants usage unique \n(5)","Gants Vinyle\n(2)  (2)  (2)  (2)                ",null,null,null,"MOUSSE LAVANTE\n(1)",null,null,null,null,null,null,null,null,null,null,"Change complet NUIT      ",null,null,null,"ID SLIP EXPERT\nMAXI PRIME ",null,null,null,null,null,null,null,null,null,null,null,null,null,"Aleze           60 X90            (4 paquets par carton)","Gants usage unique (20 paquets \npar carton)","Gants Vinyle                      (10 boites \npar carton)",null,null,null,"Mousse lavante      (12 par carton)"]
[null,null,null,null,null,null,"M",null,null,null,"M",null,null,null,null,null,null,null,null,null,null,null,null,null,null,"S","M","L","XL",null,null,null,null,null,null,null,null,null,null,null,null,"M",null,null,null,"M",null,null,null,null,null,null,null,null,null,null,null,null,null,null,"S","M","L","XL"]
["Paquets",null,null,null,null,null,null,null,null,null,null,null,null,null,null,null,null,null,null,null,null,null,null,null,null,null,null,null,null,null,null,null,null,null,null,"Paquets",null,null,null,null,null,4,null,null,null,3,null,null,null,null,null,null,null,null,null,null,null,null,1,5,2,2,2,2,1]
[]
["F",null,null,null,null,"Change complet NUIT  (1)",null,null,null,"ID SLIP EXPERT\nMAXI PRIME (4)",null,null,null,null,null,null,null,null,null,null,null,"Anaform Extra              (4)",null,"Aleze           60 X90            (2)","Gants usage unique \n(5)","Gants Vinyle\n(2)  (2)  (2)  (2)                ",null,null,null,"MOUSSE LAVANTE\n(1)",null,null,null,null,null,null,null,null,null,null,"Change complet NUIT       ",null,null,null,"ID SLIP EXPERT\nMAXI PRIME",null,null,null,null,null,null,null,null,null,null,null,"Anaform Extra              ",null,"Aleze           60 X90            (4 paquets par carton)","Gants usage unique (20 paquets \npar carton)","Gants Vinyle                      (10 boites \npar carton)",null,null,null,"Mousse lavante      (12 par carton)"]
[null,null,null,null,null,null,"M",null,null,null,"M",null,null,null,null,null,null,null,null,null,null,null,null,null,null,"S","M","L","XL",null,null,null,null,null,null,null,null,null,null,null,null,"M",null,null,null,"M",null,null,null,null,null,null,null,null,null,null,null,null,null,null,"S","M","L","XL"]
["Paquets",null,null,null,null,null,null,null,null,null,null,null,null,null,null,null,null,null,null,null,null,null,null,null,null,null,null,null,null,null,null,null,null,null,null,"Paquets",null,null,null,null,null,1,null,null,null,4,null,null,null,null,null,null,null,null,null,null,4,null,2,5,2,2,2,2,1]
[]
["R",null,null,null,null,"Change complet NUIT  (9)",null,null,null,null,null,null,null,null,null,null,null,null,null,null,null,null,null,"Aleze           60 X90            (1)","Gants usage unique \n(5)","Gants Vinyle\n(2)  (2)  (2)  (2)                ",null,null,null,"MOUSSE LAVANTE\n(1)",null,null,null,null,null,null,null,null,null,null,"Change complet NUIT       ",null,null,null,null,null,null,null,null,null,null,null,null,null,null,null,null,null,"Aleze           60 X90            (4 paquets par carton)","Gants usage unique (20 paquets \npar carton)","Gants Vinyle                      (10 boites \npar carton)",null,null,null,"Mousse lavante      (12 par carton)"]
[null,null,null,null,null,null,null,"L",null,null,null,null,null,null,null,null,null,null,null,null,null,null,null,null,null,"S","M","L","XL",null,null,null,null,null,null,null,null,null,null,null,null,"M",null,null,null,null,null,null,null,null,null,null,null,null,null,null,null,null,null,null,"S","M","L","XL"]
["Paquets",null,null,null,null,null,null,null,null,null,null,null,null,null,null,null,null,null,null,null,null,null,null,null,null,null,null,null,null,null,null,null,null,null,null,"Paquets",null,null,null,null,null,6,null,null,null,null,null,null,null,null,null,null,null,null,null,null,null,null,1,5,2,2,2,2,1]

{"sheet":"Stock à réintégrer E","index":5,"n_rows":49,"n_cols":30,"rows_kept":49,"cut":false,"hidden":true,"merged":[[6,25,6,28],[6,29,7,29],[2,29,3,29],[0,1,0,4],[1,1,1,26],[2,0,3,0],[2,1,2,4],[2,5,2,8],[2,9,2,12],[2,13,2,16],[2,21,3,21],[2,22,3,22],[2,23,3,23],[2,24,3,24],[2,25,2,28],[2,17,2,20],[6,0,7,0],[6,1,6,4],[6,5,6,8],[6,9,6,12],[6,13,6,16],[6,21,7,21],[6,22,7,22],[6,23,7,23],[6,24,7,24],[14,25,14,28],[14,29,15,29],[10,0,11,0],[10,1,10,4],[10,5,10,8],[10,9,10,12],[10,13,10,16],[10,21,11,21],[10,22,11,22],[10,23,11,23],[10,24,11,24],[10,25,10,28],[10,29,11,29],[14,0,15,0],[14,1,14,4],[14,5,14,8],[14,9,14,12],[14,13,14,16],[14,21,15,21],[14,22,15,22],[14,23,15,23],[14,24,15,24],[6,17,6,20],[22,25,22,28],[22,29,23,29],[18,29,19,29],[18,21,19,21],[18,22,19,22],[18,23,19,23],[18,24,19,24],[18,25,18,28],[18,0,19,0],[18,1,18,4],[18,5,18,8],[18,9,18,12],[18,13,18,16],[22,0,23,0],[22,1,22,4],[22,5,22,8],[22,9,22,12],[22,13,22,16],[22,21,23,21],[22,22,23,22],[22,23,23,23],[22,24,23,24],[30,25,30,28],[30,29,31,29],[26,0,27,0],[26,1,26,4],[26,5,26,8],[26,9,26,12],[26,13,26,16],[26,21,27,21],[26,22,27,22],[26,23,27,23],[26,24,27,24],[26,25,26,28],[26,29,27,29],[30,0,31,0],[30,1,30,4],[30,5,30,8],[30,9,30,12],[30,13,30,16],[30,21,31,21],[30,22,31,22],[30,23,31,23],[30,24,31,24],[26,17,26,20],[30,17,30,20],[34,0,35,0],[34,1,34,4],[34,5,34,8],[34,9,34,12],[34,13,34,16],[38,0,39,0],[38,1,38,4],[38,5,38,8],[38,9,38,12],[38,13,38,16],[46,23,47,23],[46,24,47,24],[46,17,46,20],[42,17,42,20],[38,25,38,28],[38,29,39,29],[34,29,35,29],[34,21,35,21],[34,22,35,22],[34,23,35,23],[34,24,35,24],[34,25,34,28],[38,21,39,21],[38,22,39,22],[38,23,39,23],[38,24,39,24],[34,17,34,20],[38,17,38,20],[10,17,10,20],[14,17,14,20],[18,17,18,20],[22,17,22,20],[46,25,46,28],[46,29,47,29],[42,0,43,0],[42,1,42,4],[42,5,42,8],[42,9,42,12],[42,13,42,16],[42,21,43,21],[42,22,43,22],[42,23,43,23],[42,24,43,24],[42,25,42,28],[42,29,43,29],[46,0,47,0],[46,1,46,4],[46,5,46,8],[46,9,46,12],[46,13,46,16],[46,21,47,21],[46,22,47,22]]}
["Date:","2021-03-10"]
[null,"STOCK à réintégrer E"]
["D",null,null,null,null,"Change complet NUIT  (6)",null,null,null,null,null,null,null,null,null,null,null,null,null,null,null,null,null,"Aleze           60 X90            (1)","Gants usage unique \n(5)","Gants Vinyle\n(2)  (2)  (2)  (2)                ",null,null,null,"MOUSSE LAVANTE\n(1)"]
[null,null,null,null,null,null,"M",null,null,null,null,null,null,null,null,null,null,null,null,null,null,null,null,null,null,"S","M","L","XL"]
["Paquets",null,null,null,null,null,{"$f":"SUM('Stock avant commande E'!AQ5)-'Stock avant commande E'!G5","v":6},null,null,null,null,null,null,null,null,null,null,null,null,null,null,null,null,{"$f":"SUM('Stock avant commande E'!BG5)-'Stock avant commande E'!X5","v":1},{"$f":"SUM('Stock avant commande E'!BH5)-'Stock avant commande E'!Y5","v":5},{"$f":"SUM('Stock avant commande E'!BI5)-'Stock avant commande E'!Z5","v":2},{"$f":"SUM('Stock avant commande E'!BJ5)-'Stock avant commande E'!AA5","v":2},{"$f":"SUM('Stock avant commande E'!BK5)-'Stock avant commande E'!AB5","v":2},{"$f":"SUM('Stock avant commande E'!BL5)-'Stock avant commande E'!AC5","v":2},{"$f":"SUM('Stock avant commande E'!BM5)-'Stock avant commande E'!AD5","v":1}]
[]
["S",null,null,null,null,"Change complet NUIT  (6)",null,null,null,null,null,null,null,null,null,null,null,null,null,null,null,null,null,"Aleze           60 X90            (1)","Gants usage unique \n(5)","Gants Vinyle\n(2)  (2)  (2)  (2)                ",null,null,null,"MOUSSE LAVANTE\n(1)"]
[null,null,null,null,null,null,"M",null,null,null,null,null,null,null,null,null,null,null,null,null,null,null,null,null,null,"S","M","L","XL"]
["Paquets",null,null,null,null,null,{"$f":"SUM('Stock avant commande E'!AP9)-'Stock avant commande E'!H9","v":6},null,null,null,null,null,null,null,null,null,null,null,null,null,null,null,null,{"$f":"SUM('Stock avant commande E'!BG9)-'Stock avant commande E'!X9","v":1},{"$f":"SUM('Stock avant commande E'!BH9)-'Stock avant commande E'!Y9","v":5},{"$f":"SUM('Stock avant commande E'!BI9)-'Stock avant commande E'!Z9","v":2},{"$f":"SUM('Stock avant commande E'!BJ9)-'Stock avant commande E'!AA9","v":2},{"$f":"SUM('Stock avant commande E'!BK9)-'Stock avant commande E'!AB9","v":2},{"$f":"SUM('Stock avant commande E'!BL9)-'Stock avant commande E'!AC9","v":2},{"$f":"SUM('Stock avant commande E'!BM9)-'Stock avant commande E'!AD9","v":1}]
[]
["J-M",null,null,null,null,null,null,null,null,null,null,null,null,null,null,null,null,null,null,null,null,null,null,null,"Gants usage unique \n(5)","Gants Vinyle\n(2)  (2)  (2)  (2)                ",null,null,null,"MOUSSE LAVANTE\n(1)"]
[null,null,null,null,null,null,null,null,null,null,null,null,null,null,null,null,null,null,null,null,null,null,null,null,null,"S","M","L","XL"]
["Paquets",null,null,null,null,null,null,null,null,null,null,null,null,null,null,null,null,null,null,null,null,null,null,null,{"$f":"SUM('Stock avant commande E'!BH13)-'Stock avant commande E'!Y13","v":5},{"$f":"SUM('Stock avant commande E'!BI13)-'Stock avant commande E'!Z13","v":2},{"$f":"SUM('Stock avant commande E'!BJ13)-'Stock avant commande E'!AA13","v":2},{"$f":"SUM('Stock avant commande E'!BK13)-'Stock avant commande E'!AB13","v":2},{"$f":"SUM('Stock avant commande E'!BL13)-'Stock avant commande E'!AC13","v":2},{"$f":"SUM('Stock avant commande E'!BM13)-'Stock avant commande E'!AD13","v":1}]
[]
["F",null,null,null,null,null,null,null,null,null,null,null,null,null,null,null,null,null,null,null,null,null,null,"Aleze           60 X90            (1)","Gants usage unique \n(5)","Gants Vinyle\n(2)  (2)  (2)  (2)                ",null,null,null,"MOUSSE LAVANTE\n(1)"]
[null,null,null,null,null,null,null,null,null,null,null,null,null,null,null,null,null,null,null,null,null,null,null,null,null,"S","M","L","XL"]
["Paquets",null,null,null,null,null,null,null,null,null,null,null,null,null,null,null,null,null,null,null,null,null,null,{"$f":"SUM('Stock avant commande E'!BG17)-'Stock avant commande E'!X17","v":1},{"$f":"SUM('Stock avant commande E'!BH17)-'Stock avant commande E'!Y17","v":5},{"$f":"SUM('Stock avant commande E'!BI17)-'Stock avant commande E'!Z17","v":2},{"$f":"SUM('Stock avant commande E'!BJ17)-'Stock avant commande E'!AA17","v":2},{"$f":"SUM('Stock avant commande E'!BK17)-'Stock avant commande E'!AB17","v":2},{"$f":"SUM('Stock avant commande E'!BL17)-'Stock avant commande E'!AC17","v":2},{"$f":"SUM('Stock avant commande E'!BM17)-'Stock avant commande E'!AD17","v":1}]
[]
["P",null,null,null,null,null,null,null,null,null,null,null,null,null,null,null,null,null,null,null,null,null,null,null,"Gants usage unique \n(5)","Gants Vinyle\n(2)  (2)  (2)  (2)                ",null,null,null,"MOUSSE LAVANTE\n(1)"]
[null,null,null,null,null,null,null,null,null,null,null,null,null,null,null,null,null,null,null,null,null,null,null,null,null,"S","M","L","XL"]
["Paquets",null,null,null,null,null,null,null,null,null,null,null,null,null,null,null,null,null,null,null,null,null,null,null,{"$f":"SUM('Stock avant commande E'!BH21)-'Stock avant commande E'!Y21","v":5},{"$f":"SUM('Stock avant commande E'!BI21)-'Stock avant commande E'!Z21","v":2},{"$f":"SUM('Stock avant commande E'!BJ21)-'Stock avant commande E'!AA21","v":2},{"$f":"SUM('Stock avant commande E'!BK21)-'Stock avant commande E'!AB21","v":2},{"$f":"SUM('Stock avant commande E'!BL21)-'Stock avant commande E'!AC21","v":2},{"$f":"SUM('Stock avant commande E'!BM21)-'Stock avant commande E'!AD21","v":1}]
[]
["A",null,null,null,null,"Change complet NUIT  (3)",null,null,null,"ID SLIP EXPERT\nMAXI PRIME (6)",null,null,null,null,null,null,null,null,null,null,null,null,null,"Aleze           60 X90            (1)","Gants usage unique \n(5)","Gants Vinyle\n(2)  (2)  (2)  (2)                ",null,null,null,"MOUSSE LAVANTE\n(1)"]
[null,null,null,null,null,null,"M",null,null,null,"M",null,null,null,null,null,null,null,null,null,null,null,null,null,null,"S","M","L","XL"]
["Paquets",null,null,null,null,null,{"$f":"SUM('Stock avant commande E'!AP25)-'Stock avant commande E'!G25","v":3},null,null,null,{"$f":"SUM('Stock avant commande E'!AT25)-'Stock avant commande E'!K25","v":6},null,null,null,null,null,null,null,null,null,null,null,null,{"$f":"SUM('Stock avant commande E'!BG25)-'Stock avant commande E'!X25","v":1},{"$f":"SUM('Stock avant commande E'!BH25)-'Stock avant commande E'!Y25","v":5},{"$f":"SUM('Stock avant commande E'!BI25)-'Stock avant commande E'!Z25","v":2},{"$f":"SUM('Stock avant commande E'!BJ25)-'Stock avant commande E'!AA25","v":2},{"$f":"SUM('Stock avant commande E'!BK25)-'Stock avant commande E'!AB25","v":2},{"$f":"SUM('Stock avant commande E'!BL25)-'Stock avant commande E'!AC25","v":2},{"$f":"SUM('Stock avant commande E'!BM25)-'Stock avant commande E'!AD25","v":1}]
[]
["P",null,null,null,null,"Change complet NUIT  (9)",null,null,null,null,null,null,null,null,null,null,null,null,null,null,null,null,null,"Aleze           60 X90            (2)","Gants usage unique \n(5)","Gants Vinyle\n(2)  (2)  (2)  (2)                ",null,null,null,"MOUSSE LAVANTE\n(1)"]
[null,null,null,null,null,null,null,null,"XL",null,null,null,null,null,null,null,null,null,null,null,null,null,null,null,null,"S","M","L","XL"]
["Paquets",null,null,null,null,null,null,null,{"$f":"SUM('Stock avant commande E'!AR29-'Stock avant commande E'!I29)","v":9},null,null,null,null,null,null,null,null,null,null,null,null,null,null,{"$f":"SUM('Stock avant commande E'!BG29)-'Stock avant commande E'!X29","v":2},{"$f":"SUM('Stock avant commande E'!BH29)-'Stock avant commande E'!Y29","v":5},{"$f":"SUM('Stock avant commande E'!BI29)-'Stock avant commande E'!Z29","v":2},{"$f":"SUM('Stock avant commande E'!BJ29)-'Stock avant commande E'!AA29","v":2},{"$f":"SUM('Stock avant commande E'!BK29)-'Stock avant commande E'!AB29","v":2},{"$f":"SUM('Stock avant commande E'!BL29)-'Stock avant commande E'!AC29","v":2},{"$f":"SUM('Stock avant commande E'!BM29)-'Stock avant commande E'!AD29","v":1}]
[]
["Acc temp",null,null,null,null,null,null,null,null,null,null,null,null,null,null,null,null,null,null,null,null,null,null,"Aleze           60 X90            (1)","Gants usage unique \n(5)","Gants Vinyle\n(2)  (2)  (2)  (2)                ",null,null,null,"MOUSSE LAVANTE\n(1)"]
[null,null,null,null,null,null,null,null,null,null,null,null,null,null,null,null,null,null,null,null,null,null,null,null,null,"S","M","L","XL"]
["Paquets",null,null,null,null,null,null,null,null,null,null,null,null,null,null,null,null,null,null,null,null,null,null,{"$f":"SUM('Stock avant commande E'!BG33)-'Stock avant commande E'!X33","v":1},{"$f":"SUM('Stock avant commande E'!BH33)-'Stock avant commande E'!Y33","v":5},{"$f":"SUM('Stock avant commande E'!BI33)-'Stock avant commande E'!Z33","v":2},{"$f":"SUM('Stock avant commande E'!BJ33)-'Stock avant commande E'!AA33","v":2},{"$f":"SUM('Stock avant commande E'!BK33)-'Stock avant commande E'!AB33","v":2},{"$f":"SUM('Stock avant commande E'!BL33)-'Stock avant commande E'!AC33","v":2},{"$f":"SUM('Stock avant commande E'!BM33)-'Stock avant commande E'!AD33","v":1}]
[]
["K",null,null,null,null,"Change complet NUIT  (6)",null,null,null,null,null,null,null,null,null,null,null,null,null,null,null,null,null,"Aleze           60 X90            (1)","Gants usage unique \n(5)","Gants Vinyle\n(2)  (2)  (2)  (2)                ",null,null,null,"MOUSSE LAVANTE\n(1)"]
[null,null,null,null,null,null,"M",null,null,null,null,null,null,null,null,null,null,null,null,null,null,null,null,null,null,"S","M","L","XL"]
["Paquets",null,null,null,null,null,{"$f":"SUM('Stock avant commande E'!AP37)-'Stock avant commande E'!G37","v":6},null,null,null,null,null,null,null,null,null,null,null,null,null,null,null,null,{"$f":"SUM('Stock avant commande E'!BG37)-'Stock avant commande E'!X37","v":1},{"$f":"SUM('Stock avant commande E'!BH37)-'Stock avant commande E'!Y37","v":5},{"$f":"SUM('Stock avant commande E'!BI37)-'Stock avant commande E'!Z37","v":2},{"$f":"SUM('Stock avant commande E'!BJ37)-'Stock avant commande E'!AA37","v":2},{"$f":"SUM('Stock avant commande E'!BK37)-'Stock avant commande E'!AB37","v":2},{"$f":"SUM('Stock avant commande E'!BL37)-'Stock avant commande E'!AC37","v":2},{"$f":"SUM('Stock avant commande E'!BM37)-'Stock avant commande E'!AD37","v":1}]
[]
["F",null,null,null,null,"Change complet NUIT  (4)",null,null,null,"ID SLIP EXPERT\nMAXI PRIME (3)",null,null,null,null,null,null,null,null,null,null,null,null,null,"Aleze           60 X90            (1)","Gants usage unique \n(5)","Gants Vinyle\n(2)  (2)  (2)  (2)                ",null,null,null,"MOUSSE LAVANTE\n(1)"]
[null,null,null,null,null,null,"M",null,null,null,"M",null,null,null,null,null,null,null,null,null,null,null,null,null,null,"S","M","L","XL"]
["Paquets",null,null,null,null,null,{"$f":"SUM('Stock avant commande E'!AP41)-'Stock avant commande E'!G41","v":4},null,null,null,{"$f":"SUM('Stock avant commande E'!AT41)-'Stock avant commande E'!K41","v":3},null,null,null,null,null,null,null,null,null,null,null,null,{"$f":"SUM('Stock avant commande E'!BG41)-'Stock avant commande E'!X41","v":1},{"$f":"SUM('Stock avant commande E'!BH41)-'Stock avant commande E'!Y41","v":5},{"$f":"SUM('Stock avant commande E'!BI41)-'Stock avant commande E'!Z41","v":2},{"$f":"SUM('Stock avant commande E'!BJ41)-'Stock avant commande E'!AA41","v":2},{"$f":"SUM('Stock avant commande E'!BK41)-'Stock avant commande E'!AB41","v":2},{"$f":"SUM('Stock avant commande E'!BL41)-'Stock avant commande E'!AC41","v":2},{"$f":"SUM('Stock avant commande E'!BM41)-'Stock avant commande E'!AD41","v":1}]
[]
["F",null,null,null,null,"Change complet NUIT  (4)",null,null,null,"ID SLIP EXPERT\nMAXI PRIME (4)",null,null,null,null,null,null,null,null,null,null,null,"Anaform Extra              ",null,"Aleze           60 X90            (2)","Gants usage unique \n(5)","Gants Vinyle\n(2)  (2)  (2)  (2)                ",null,null,null,"MOUSSE LAVANTE\n(1)"]
[null,null,null,null,null,null,"M",null,null,null,"M",null,null,null,null,null,null,null,null,null,null,null,null,null,null,"S","M","L","XL"]
["Paquets",null,null,null,null,null,{"$f":"SUM('Stock avant commande E'!AP45)-'Stock avant commande E'!G45","v":1},null,null,null,{"$f":"SUM('Stock avant commande E'!AT45)-'Stock avant commande E'!K45","v":4},null,null,null,null,null,null,null,null,null,null,{"$f":"SUM('Stock avant commande E'!BE45)-'Stock avant commande E'!V45","v":4},null,{"$f":"SUM('Stock avant commande E'!BG45)-'Stock avant commande E'!X45","v":2},{"$f":"SUM('Stock avant commande E'!BH45)-'Stock avant commande E'!Y45","v":5},{"$f":"SUM('Stock avant commande E'!BI45)-'Stock avant commande E'!Z45","v":2},{"$f":"SUM('Stock avant commande E'!BJ45)-'Stock avant commande E'!AA45","v":2},{"$f":"SUM('Stock avant commande E'!BK45)-'Stock avant commande E'!AB45","v":2},{"$f":"SUM('Stock avant commande E'!BL45)-'Stock avant commande E'!AC45","v":2},{"$f":"SUM('Stock avant commande E'!BM45)-'Stock avant commande E'!AD45","v":1}]
[]
["R",null,null,null,null,"Change complet NUIT  (9)",null,null,null,null,null,null,null,null,null,null,null,null,null,null,null,null,null,"Aleze           60 X90            (2)","Gants usage unique \n(5)","Gants Vinyle\n(2)  (2)  (2)  (2)                ",null,null,null,"MOUSSE LAVANTE\n(1)"]
[null,null,null,null,null,null,null,"L",null,null,null,null,null,null,null,null,null,null,null,null,null,null,null,null,null,"S","M","L","XL"]
["Paquets",null,null,null,null,null,null,{"$f":"SUM('Stock avant commande E'!AP49)-'Stock avant commande E'!H49","v":6},null,null,null,null,null,null,null,null,null,null,null,null,null,null,null,{"$f":"SUM('Stock avant commande E'!BG49)-'Stock avant commande E'!X49","v":1},{"$f":"SUM('Stock avant commande E'!BH49)-'Stock avant commande E'!Y49","v":5},{"$f":"SUM('Stock avant commande E'!BI49)-'Stock avant commande E'!Z49","v":2},{"$f":"SUM('Stock avant commande E'!BJ49)-'Stock avant commande E'!AA49","v":2},{"$f":"SUM('Stock avant commande E'!BK49)-'Stock avant commande E'!AB49","v":2},{"$f":"SUM('Stock avant commande E'!BL49)-'Stock avant commande E'!AC49","v":2},{"$f":"SUM('Stock avant commande E'!BM49)-'Stock avant commande E'!AD49","v":1}]

{"sheet":"COMMANDE E","index":6,"n_rows":7,"n_cols":30,"rows_kept":7,"cut":false,"hidden":true,"merged":[[3,29,4,29],[3,1,3,4],[3,5,3,8],[3,17,3,20],[3,21,4,21],[3,22,4,22],[3,9,3,12],[3,13,3,16],[0,1,0,4],[1,0,1,25],[3,23,4,23],[3,24,4,24],[3,25,3,28]]}
["Date:",{"$f":"'Stock avant commande E'!B1:E1","v":"2021-03-31"}]
["Commande protections Unité E"]
[]
[null,"Change complet JOUR       (4 paquets par carton)",null,null,null,"Change complet NUIT       (4 paquets par carton)",null,null,null,"ID SLIP EXPERT\nMAXI PRIME\n(3 paquets par carton)",null,null,null,"TENA SLIP MAX\n(4 paquets par carton)",null,null,null,"Pants                                       (8 paquets par carton)",null,null,null,"Anaform Extra              (4 paquets par carton)","Aleze           60 X60            (4 paquets par carton)","Aleze           60 X90            (4 paquets par carton)","Gants usage unique (20 paquets \npar carton)","Gants Vinyle                      (10 boites \npar carton)",null,null,null,"Mousse lavante      (12 par carton)"]
[null,"S","M","L","XL","S","M","L","XL","S","M","L","XL","S","M","L","XL","S","M","L","XL",null,null,null,null,"S","M","L","XL"]
["Paquets",{"$f":"SUM('Stock à réintégrer E'!B5)+'Stock à réintégrer E'!B9+'Stock à réintégrer E'!B13+'Stock à réintégrer E'!B17+'Stock à réintégrer E'!B21+'Stock à réintégrer E'!B25+'Stock à réintégrer E'!B29+'Stock à réintégrer E'!B33+'Stock à réintégrer E'!B37+'Stock à réintégrer E'!B41+'Stock à réintégrer E'!B45+'Stock à réintégrer E'!B49","v":0},{"$f":"SUM('Stock à réintégrer E'!C5)+'Stock à réintégrer E'!C9+'Stock à réintégrer E'!C13+'Stock à réintégrer E'!C17+'Stock à réintégrer E'!C21+'Stock à réintégrer E'!C25+'Stock à réintégrer E'!C29+'Stock à réintégrer E'!C33+'Stock à réintégrer E'!C37+'Stock à réintégrer E'!C41+'Stock à réintégrer E'!C45+'Stock à réintégrer E'!C49","v":0},{"$f":"SUM('Stock à réintégrer E'!D5)+'Stock à réintégrer E'!D9+'Stock à réintégrer E'!D13+'Stock à réintégrer E'!D17+'Stock à réintégrer E'!D21+'Stock à réintégrer E'!D25+'Stock à réintégrer E'!D29+'Stock à réintégrer E'!D33+'Stock à réintégrer E'!D37+'Stock à réintégrer E'!D41+'Stock à réintégrer E'!D45+'Stock à réintégrer E'!D49","v":0},{"$f":"SUM('Stock à réintégrer E'!E5)+'Stock à réintégrer E'!E9+'Stock à réintégrer E'!E13+'Stock à réintégrer E'!E17+'Stock à réintégrer E'!E21+'Stock à réintégrer E'!E25+'Stock à réintégrer E'!E29+'Stock à réintégrer E'!E33+'Stock à réintégrer E'!E37+'Stock à réintégrer E'!E41+'Stock à réintégrer E'!E45+'Stock à réintégrer E'!E49","v":0},{"$f":"SUM('Stock à réintégrer E'!F5)+'Stock à réintégrer E'!F9+'Stock à réintégrer E'!F13+'Stock à réintégrer E'!F17+'Stock à réintégrer E'!F21+'Stock à réintégrer E'!F25+'Stock à réintégrer E'!F29+'Stock à réintégrer E'!F33+'Stock à réintégrer E'!F37+'Stock à réintégrer E'!F41+'Stock à réintégrer E'!F45+'Stock à réintégrer E'!F49","v":0},{"$f":"SUM('Stock à réintégrer E'!G5)+'Stock à réintégrer E'!G9+'Stock à réintégrer E'!G13+'Stock à réintégrer E'!G17+'Stock à réintégrer E'!G21+'Stock à réintégrer E'!G25+'Stock à réintégrer E'!G29+'Stock à réintégrer E'!G33+'Stock à réintégrer E'!G37+'Stock à réintégrer E'!G41+'Stock à réintégrer E'!G45+'Stock à réintégrer E'!G49","v":26},{"$f":"SUM('Stock à réintégrer E'!H5)+'Stock à réintégrer E'!H9+'Stock à réintégrer E'!H13+'Stock à réintégrer E'!H17+'Stock à réintégrer E'!H21+'Stock à réintégrer E'!H25+'Stock à réintégrer E'!H29+'Stock à réintégrer E'!H33+'Stock à réintégrer E'!H37+'Stock à réintégrer E'!H41+'Stock à réintégrer E'!H45+'Stock à réintégrer E'!H49","v":6},{"$f":"SUM('Stock à réintégrer E'!I5)+'Stock à réintégrer E'!I9+'Stock à réintégrer E'!I13+'Stock à réintégrer E'!I17+'Stock à réintégrer E'!I21+'Stock à réintégrer E'!I25+'Stock à réintégrer E'!I29+'Stock à réintégrer E'!I33+'Stock à réintégrer E'!I37+'Stock à réintégrer E'!I41+'Stock à réintégrer E'!I45+'Stock à réintégrer E'!I49","v":9},{"$f":"SUM('Stock à réintégrer E'!J5)+'Stock à réintégrer E'!J9+'Stock à réintégrer E'!J13+'Stock à réintégrer E'!J17+'Stock à réintégrer E'!J21+'Stock à réintégrer E'!J25+'Stock à réintégrer E'!J29+'Stock à réintégrer E'!J33+'Stock à réintégrer E'!J37+'Stock à réintégrer E'!J41+'Stock à réintégrer E'!J45+'Stock à réintégrer E'!J49","v":0},{"$f":"SUM('Stock à réintégrer E'!K5)+'Stock à réintégrer E'!K9+'Stock à réintégrer E'!K13+'Stock à réintégrer E'!K17+'Stock à réintégrer E'!K21+'Stock à réintégrer E'!K25+'Stock à réintégrer E'!K29+'Stock à réintégrer E'!K33+'Stock à réintégrer E'!K37+'Stock à réintégrer E'!K41+'Stock à réintégrer E'!K45+'Stock à réintégrer E'!K49","v":13},{"$f":"SUM('Stock à réintégrer E'!L5)+'Stock à réintégrer E'!L9+'Stock à réintégrer E'!L13+'Stock à réintégrer E'!L17+'Stock à réintégrer E'!L21+'Stock à réintégrer E'!L25+'Stock à réintégrer E'!L29+'Stock à réintégrer E'!L33+'Stock à réintégrer E'!L37+'Stock à réintégrer E'!L41+'Stock à réintégrer E'!L45+'Stock à réintégrer E'!L49","v":0},{"$f":"SUM('Stock à réintégrer E'!M5)+'Stock à réintégrer E'!M9+'Stock à réintégrer E'!M13+'Stock à réintégrer E'!M17+'Stock à réintégrer E'!M21+'Stock à réintégrer E'!M25+'Stock à réintégrer E'!M29+'Stock à réintégrer E'!M33+'Stock à réintégrer E'!M37+'Stock à réintégrer E'!M41+'Stock à réintégrer E'!M45+'Stock à réintégrer E'!M49","v":0},{"$f":"SUM('Stock à réintégrer E'!N5)+'Stock à réintégrer E'!N9+'Stock à réintégrer E'!N13+'Stock à réintégrer E'!N17+'Stock à réintégrer E'!N21+'Stock à réintégrer E'!N25+'Stock à réintégrer E'!N29+'Stock à réintégrer E'!N33+'Stock à réintégrer E'!N37+'Stock à réintégrer E'!N41+'Stock à réintégrer E'!N45+'Stock à réintégrer E'!N49","v":0},{"$f":"SUM('Stock à réintégrer E'!O5)+'Stock à réintégrer E'!O9+'Stock à réintégrer E'!O13+'Stock à réintégrer E'!O17+'Stock à réintégrer E'!O21+'Stock à réintégrer E'!O25+'Stock à réintégrer E'!O29+'Stock à réintégrer E'!O33+'Stock à réintégrer E'!O37+'Stock à réintégrer E'!O41+'Stock à réintégrer E'!O45+'Stock à réintégrer E'!O49","v":0},{"$f":"SUM('Stock à réintégrer E'!P5)+'Stock à réintégrer E'!P9+'Stock à réintégrer E'!P13+'Stock à réintégrer E'!P17+'Stock à réintégrer E'!P21+'Stock à réintégrer E'!P25+'Stock à réintégrer E'!P29+'Stock à réintégrer E'!P33+'Stock à réintégrer E'!P37+'Stock à réintégrer E'!P41+'Stock à réintégrer E'!P45+'Stock à réintégrer E'!P49","v":0},{"$f":"SUM('Stock à réintégrer E'!Q5)+'Stock à réintégrer E'!Q9+'Stock à réintégrer E'!Q13+'Stock à réintégrer E'!Q17+'Stock à réintégrer E'!Q21+'Stock à réintégrer E'!Q25+'Stock à réintégrer E'!Q29+'Stock à réintégrer E'!Q33+'Stock à réintégrer E'!Q37+'Stock à réintégrer E'!Q41+'Stock à réintégrer E'!Q45+'Stock à réintégrer E'!Q49","v":0},{"$f":"SUM('Stock à réintégrer E'!R5)+'Stock à réintégrer E'!R9+'Stock à réintégrer E'!R13+'Stock à réintégrer E'!R17+'Stock à réintégrer E'!R21+'Stock à réintégrer E'!R25+'Stock à réintégrer E'!R29+'Stock à réintégrer E'!R33+'Stock à réintégrer E'!R37+'Stock à réintégrer E'!R41+'Stock à réintégrer E'!R45+'Stock à réintégrer E'!R49","v":0},{"$f":"SUM('Stock à réintégrer E'!S5)+'Stock à réintégrer E'!S9+'Stock à réintégrer E'!S13+'Stock à réintégrer E'!S17+'Stock à réintégrer E'!S21+'Stock à réintégrer E'!S25+'Stock à réintégrer E'!S29+'Stock à réintégrer E'!S33+'Stock à réintégrer E'!S37+'Stock à réintégrer E'!S41+'Stock à réintégrer E'!S45+'Stock à réintégrer E'!S49","v":0},{"$f":"SUM('Stock à réintégrer E'!T5)+'Stock à réintégrer E'!T9+'Stock à réintégrer E'!T13+'Stock à réintégrer E'!T17+'Stock à réintégrer E'!T21+'Stock à réintégrer E'!T25+'Stock à réintégrer E'!T29+'Stock à réintégrer E'!T33+'Stock à réintégrer E'!T37+'Stock à réintégrer E'!T41+'Stock à réintégrer E'!T45+'Stock à réintégrer E'!T49","v":0},{"$f":"SUM('Stock à réintégrer E'!U5)+'Stock à réintégrer E'!U9+'Stock à réintégrer E'!U13+'Stock à réintégrer E'!U17+'Stock à réintégrer E'!U21+'Stock à réintégrer E'!U25+'Stock à réintégrer E'!U29+'Stock à réintégrer E'!U33+'Stock à réintégrer E'!U37+'Stock à réintégrer E'!U41+'Stock à réintégrer E'!U45+'Stock à réintégrer E'!U49","v":0},{"$f":"SUM('Stock à réintégrer E'!V5)+'Stock à réintégrer E'!V9+'Stock à réintégrer E'!V13+'Stock à réintégrer E'!V17+'Stock à réintégrer E'!V21+'Stock à réintégrer E'!V25+'Stock à réintégrer E'!V29+'Stock à réintégrer E'!V33+'Stock à réintégrer E'!V37+'Stock à réintégrer E'!V41+'Stock à réintégrer E'!V45+'Stock à réintégrer E'!V49","v":4},{"$f":"SUM('Stock à réintégrer E'!W5)+'Stock à réintégrer E'!W9+'Stock à réintégrer E'!W13+'Stock à réintégrer E'!W17+'Stock à réintégrer E'!W21+'Stock à réintégrer E'!W25+'Stock à réintégrer E'!W29+'Stock à réintégrer E'!W33+'Stock à réintégrer E'!W37+'Stock à réintégrer E'!W41+'Stock à réintégrer E'!W45+'Stock à réintégrer E'!W49","v":0},{"$f":"SUM('Stock à réintégrer E'!X5)+'Stock à réintégrer E'!X9+'Stock à réintégrer E'!X13+'Stock à réintégrer E'!X17+'Stock à réintégrer E'!X21+'Stock à réintégrer E'!X25+'Stock à réintégrer E'!X29+'Stock à réintégrer E'!X33+'Stock à réintégrer E'!X37+'Stock à réintégrer E'!X41+'Stock à réintégrer E'!X45+'Stock à réintégrer E'!X49","v":12},{"$f":"SUM('Stock à réintégrer E'!Y5)+'Stock à réintégrer E'!Y9+'Stock à réintégrer E'!Y13+'Stock à réintégrer E'!Y17+'Stock à réintégrer E'!Y21+'Stock à réintégrer E'!Y25+'Stock à réintégrer E'!Y29+'Stock à réintégrer E'!Y33+'Stock à réintégrer E'!Y37+'Stock à réintégrer E'!Y41+'Stock à réintégrer E'!Y45+'Stock à réintégrer E'!Y49","v":60},{"$f":"SUM('Stock à réintégrer E'!Z5)+'Stock à réintégrer E'!Z9+'Stock à réintégrer E'!Z13+'Stock à réintégrer E'!Z17+'Stock à réintégrer E'!Z21+'Stock à réintégrer E'!Z25+'Stock à réintégrer E'!Z29+'Stock à réintégrer E'!Z33+'Stock à réintégrer E'!Z37+'Stock à réintégrer E'!Z41+'Stock à réintégrer E'!Z45+'Stock à réintégrer E'!Z49","v":24},{"$f":"SUM('Stock à réintégrer E'!AA5)+'Stock à réintégrer E'!AA9+'Stock à réintégrer E'!AA13+'Stock à réintégrer E'!AA17+'Stock à réintégrer E'!AA21+'Stock à réintégrer E'!AA25+'Stock à réintégrer E'!AA29+'Stock à réintégrer E'!AA33+'Stock à réintégrer E'!AA37+'Stock à réintégrer E'!AA41+'Stock à réintégrer E'!AA45+'Stock à réintégrer E'!AA49","v":24},{"$f":"SUM('Stock à réintégrer E'!AB5)+'Stock à réintégrer E'!AB9+'Stock à réintégrer E'!AB13+'Stock à réintégrer E'!AB17+'Stock à réintégrer E'!AB21+'Stock à réintégrer E'!AB25+'Stock à réintégrer E'!AB29+'Stock à réintégrer E'!AB33+'Stock à réintégrer E'!AB37+'Stock à réintégrer E'!AB41+'Stock à réintégrer E'!AB45+'Stock à réintégrer E'!AB49","v":24},{"$f":"SUM('Stock à réintégrer E'!AC5)+'Stock à réintégrer E'!AC9+'Stock à réintégrer E'!AC13+'Stock à réintégrer E'!AC17+'Stock à réintégrer E'!AC21+'Stock à réintégrer E'!AC25+'Stock à réintégrer E'!AC29+'Stock à réintégrer E'!AC33+'Stock à réintégrer E'!AC37+'Stock à réintégrer E'!AC41+'Stock à réintégrer E'!AC45+'Stock à réintégrer E'!AC49","v":24},{"$f":"SUM('Stock à réintégrer E'!AD5)+'Stock à réintégrer E'!AD9+'Stock à réintégrer E'!AD13+'Stock à réintégrer E'!AD17+'Stock à réintégrer E'!AD21+'Stock à réintégrer E'!AD25+'Stock à réintégrer E'!AD29+'Stock à réintégrer E'!AD33+'Stock à réintégrer E'!AD37+'Stock à réintégrer E'!AD41+'Stock à réintégrer E'!AD45+'Stock à réintégrer E'!AD49","v":12}]
["Cartons",{"$f":"ROUNDUP(SUM(B6)/4,0)","v":0},0,0,0,0,7,2,3,{"$f":"ROUNDUP(SUM(J6)/3,0)","v":0},{"$f":"ROUNDUP(SUM(K6)/3,0)","v":5},{"$f":"ROUNDUP(SUM(L6)/3,0)","v":0},{"$f":"ROUNDUP(SUM(M6)/3,0)","v":0},{"$f":"ROUNDUP(SUM(N6)/4,0)","v":0},{"$f":"ROUNDUP(SUM(O6)/4,0)","v":0},{"$f":"ROUNDUP(SUM(P6)/4,0)","v":0},{"$f":"ROUNDUP(SUM(Q6)/4,0)","v":0},{"$f":"ROUNDUP(SUM(R6)/8,0)","v":0},{"$f":"ROUNDUP(SUM(S6)/8,0)","v":0},{"$f":"ROUNDUP(SUM(T6)/8,0)","v":0},{"$f":"ROUNDUP(SUM(U6)/8,0)","v":0},{"$f":"ROUNDUP(SUM(V6)/4,0)","v":1},{"$f":"ROUNDUP(SUM(W6)/4,0)","v":0},{"$f":"ROUNDUP(SUM(X6)/4,0)","v":3},{"$f":"ROUNDUP(SUM(Y6)/20,0)","v":3},{"$f":"ROUNDUP(SUM(Z6)/10,0)","v":3},{"$f":"ROUNDUP(SUM(AA6)/10,0)","v":3},{"$f":"ROUNDUP(SUM(AB6)/10,0)","v":3},{"$f":"ROUNDUP(SUM(AC6)/10,0)","v":3},{"$f":"ROUNDUP(SUM(AD6)/12,0)","v":1}]

{"sheet":"Stock avant commande O","index":7,"n_rows":49,"n_cols":66,"rows_kept":49,"cut":false,"hidden":true,"merged":[[46,25,46,28],[46,29,47,29],[42,24,43,24],[42,25,42,28],[42,29,43,29],[46,0,47,0],[46,1,46,4],[46,5,46,8],[46,21,47,21],[46,22,47,22],[46,23,47,23],[46,24,47,24],[42,0,43,0],[42,1,42,4],[42,5,42,8],[42,21,43,21],[42,22,43,22],[42,23,43,23],[42,9,42,12],[42,13,42,16],[46,9,46,12],[46,13,46,16],[42,17,42,20],[46,17,46,20],[38,0,39,0],[38,1,38,4],[38,5,38,8],[38,21,39,21],[38,22,39,22],[38,23,39,23],[38,24,39,24],[38,25,38,28],[38,29,39,29],[38,9,38,12],[38,13,38,16],[38,17,38,20],[34,0,35,0],[34,1,34,4],[34,5,34,8],[34,21,35,21],[34,22,35,22],[34,23,35,23],[34,24,35,24],[34,25,34,28],[34,29,35,29],[34,9,34,12],[34,13,34,16],[34,17,34,20],[26,24,27,24],[26,25,26,28],[26,29,27,29],[30,0,31,0],[30,1,30,4],[30,5,30,8],[30,21,31,21],[30,22,31,22],[30,23,31,23],[30,24,31,24],[26,0,27,0],[26,1,26,4],[26,5,26,8],[26,21,27,21],[26,22,27,22],[26,23,27,23],[30,25,30,28],[30,29,31,29],[26,9,26,12],[26,13,26,16],[30,9,30,12],[30,13,30,16],[26,17,26,20],[30,17,30,20],[22,0,23,0],[22,1,22,4],[22,5,22,8],[22,21,23,21],[22,22,23,22],[22,23,23,23],[22,24,23,24],[22,25,22,28],[22,29,23,29],[22,9,22,12],[22,13,22,16],[22,17,22,20],[18,0,19,0],[18,1,18,4],[18,5,18,8],[18,21,19,21],[18,22,19,22],[18,23,19,23],[18,24,19,24],[18,25,18,28],[18,29,19,29],[18,9,18,12],[18,13,18,16],[18,17,18,20],[10,24,11,24],[10,25,10,28],[10,29,11,29],[14,0,15,0],[14,1,14,4],[14,5,14,8],[14,21,15,21],[14,22,15,22],[14,23,15,23],[14,24,15,24],[10,0,11,0],[10,1,10,4],[10,5,10,8],[10,21,11,21],[10,22,11,22],[10,23,11,23],[14,25,14,28],[14,29,15,29],[10,9,10,12],[10,13,10,16],[14,9,14,12],[14,13,14,16],[10,17,10,20],[14,17,14,20],[2,29,3,29],[6,0,7,0],[6,1,6,4],[6,5,6,8],[6,21,7,21],[6,22,7,22],[6,23,7,23],[6,24,7,24],[6,25,6,28],[6,29,7,29],[6,9,6,12],[6,13,6,16],[6,17,6,20],[0,1,0,4],[1,1,1,26],[2,0,3,0],[2,1,2,4],[2,5,2,8],[2,21,3,21],[2,22,3,22],[2,23,3,23],[2,24,3,24],[2,25,2,28],[2,9,2,12],[2,13,2,16],[2,17,2,20],[2,60,3,60],[2,61,2,64],[2,65,3,65],[6,37,6,40],[6,41,6,44],[6,45,6,48],[6,49,6,52],[6,53,6,56],[6,57,7,57],[6,58,7,58],[6,60,7,60],[6,61,6,64],[6,65,7,65],[2,59,3,59],[6,59,7,59],[2,37,2,40],[2,41,2,44],[2,45,2,48],[2,49,2,52],[2,53,2,56],[2,57,3,57],[2,58,3,58],[10,60,11,60],[10,61,10,64],[10,65,11,65],[14,37,14,40],[14,41,14,44],[14,45,14,48],[14,49,14,52],[14,53,14,56],[14,57,15,57],[14,58,15,58],[14,60,15,60],[14,61,14,64],[14,65,15,65],[10,59,11,59],[14,59,15,59],[10,37,10,40],[10,41,10,44],[10,45,10,48],[10,49,10,52],[10,53,10,56],[10,57,11,57],[10,58,11,58],[18,60,19,60],[18,61,18,64],[18,65,19,65],[22,37,22,40],[22,41,22,44],[22,45,22,48],[22,49,22,52],[22,53,22,56],[22,57,23,57],[22,58,23,58],[22,60,23,60],[22,61,22,64],[22,65,23,65],[18,59,19,59],[22,59,23,59],[18,37,18,40],[18,41,18,44],[18,45,18,48],[18,49,18,52],[18,53,18,56],[18,57,19,57],[18,58,19,58],[26,60,27,60],[26,61,26,64],[26,65,27,65],[30,37,30,40],[30,41,30,44],[30,45,30,48],[30,49,30,52],[30,53,30,56],[30,57,31,57],[30,58,31,58],[30,60,31,60],[30,61,30,64],[30,65,31,65],[26,59,27,59],[30,59,31,59],[26,37,26,40],[26,41,26,44],[26,45,26,48],[26,49,26,52],[26,53,26,56],[26,57,27,57],[26,58,27,58],[34,60,35,60],[34,61,34,64],[34,65,35,65],[38,37,38,40],[38,41,38,44],[38,45,38,48],[38,49,38,52],[38,53,38,56],[38,57,39,57],[38,58,39,58],[38,60,39,60],[38,61,38,64],[38,65,39,65],[34,59,35,59],[38,59,39,59],[34,37,34,40],[34,41,34,44],[34,45,34,48],[34,49,34,52],[34,53,34,56],[34,57,35,57],[34,58,35,58],[42,60,43,60],[42,61,42,64],[42,65,43,65],[46,37,46,40],[46,41,46,44],[46,45,46,48],[46,49,46,52],[46,53,46,56],[46,57,47,57],[46,58,47,58],[46,60,47,60],[46,61,46,64],[46,65,47,65],[42,59,43,59],[46,59,47,59],[42,37,42,40],[42,41,42,44],[42,45,42,48],[42,49,42,52],[42,53,42,56],[42,57,43,57],[42,58,43,58]]}
["Date:","2021-03-14"]
[null,"STOCK AVANT COMMANDE O"]
["F",null,null,null,null,"Change complet NUIT  (5)",null,null,null,null,null,null,null,null,null,null,null,null,null,null,null,null,null,"Aleze           60 X90            (2)","Gants usage unique \n(5)","Gants Vinyle                  (2 )   (3)   (3)   (2)                  ",null,null,null,"Mousse lavante",null,null,null,null,null,null,null,null,null,null,null,"Change complet NUIT       (5)",null,null,null,null,null,null,null,null,null,null,null,null,null,null,null,null,null,"Aleze           60 X90            (2)","Gants usage unique (5)","Gants Vinyle                    (2)   (3)    (3)    (2)",null,null,null,"Mousse lavante     "]
[null,null,null,null,null,null,null,"L",null,null,null,null,null,null,null,null,null,null,null,null,null,null,null,null,null,"S","M","L","XL",null,null,null,null,null,null,null,null,null,null,null,null,null,null,"L",null,null,null,null,null,null,null,null,null,null,null,null,null,null,null,null,null,"S","M","L","XL"]
["Paquets",null,null,null,null,null,null,null,null,null,null,null,null,null,null,null,null,null,null,null,null,null,null,null,null,null,null,null,null,null,null,null,null,null,null,null,"Paquets",null,null,null,null,null,null,5,null,null,null,null,null,null,null,null,null,null,null,null,null,null,null,2,5,2,3,3,2,1]
[]
["C",null,null,null,null,"Change complet NUIT  (2)",null,null,null,"ID SLIP EXPERT\nMAXI PRIME (6)",null,null,null,null,null,null,null,null,null,null,null,null,null,"Aleze           60 X90            (3)","Gants usage unique \n(8)","Gants Vinyle                  (2 )   (3)   (3)   (2)                  ",null,null,null,"Mousse lavante",null,null,null,null,null,null,null,null,null,null,null,"Change complet NUIT       (2)",null,null,null,"ID SLIP EXPERT\nMAXI PRIME\n(6)",null,null,null,null,null,null,null,null,null,null,null,null,null,"Aleze           60 X90            (3)","Gants usage unique (8)","Gants Vinyle                    (2)   (3)    (3)    (2)",null,null,null,"Mousse lavante     "]
[null,null,null,null,null,null,"M",null,null,null,"M",null,null,null,null,null,null,null,null,null,null,null,null,null,null,"S","M","L","XL",null,null,null,null,null,null,null,null,null,null,null,null,null,"M",null,null,null,"M",null,null,null,null,null,null,null,null,null,null,null,null,null,null,"S","M","L","XL"]
["Paquets",null,null,null,null,null,null,null,null,null,null,null,null,null,null,null,null,null,null,null,null,null,null,null,null,null,null,null,null,null,null,null,null,null,null,null,"Paquets",null,null,null,null,null,2,null,null,null,6,null,null,null,null,null,null,null,null,null,null,null,null,3,8,2,3,3,2,1]
[]
["A",null,null,null,null,"Change complet NUIT  (2)",null,null,null,null,null,null,null,null,null,null,null,"Pants                                       (3)",null,null,null,null,null,"Aleze           60 X90            (3)","Gants usage unique \n(3)","Gants Vinyle                  (2 )   (3)   (3)   (2)                  ",null,null,null,"Mousse lavante",null,null,null,null,null,null,null,null,null,null,null,"Change complet NUIT       (2)",null,null,null,null,null,null,null,null,null,null,null,"Pants \n(3)                                       ",null,null,null,null,null,"Aleze           60 X90            (3)","Gants usage unique (3)","Gants Vinyle                    (2)   (3)    (3)    (2)",null,null,null,"Mousse lavante     "]
[null,null,null,null,null,null,null,"L",null,null,null,null,null,null,null,null,null,null,null,"L",null,null,null,null,null,"S","M","L","XL",null,null,null,null,null,null,null,null,null,null,null,null,null,null,"L",null,null,null,null,null,null,null,null,null,null,null,"L",null,null,null,null,null,"S","M","L","XL"]
["Paquets",null,null,null,null,null,null,null,null,null,null,null,null,null,null,null,null,null,null,null,null,null,null,null,null,null,null,null,null,null,null,null,null,null,null,null,"Paquets",null,null,null,null,null,null,2,null,null,null,null,null,null,null,null,null,null,null,3,null,null,null,3,3,2,3,3,2,1]
[]
["M-L",null,null,null,null,"Change complet NUIT  (3)",null,null,null,"ID SLIP EXPERT\nMAXI PRIME (2)",null,null,null,null,null,null,null,null,null,null,null,null,null,"Aleze           60 X90            (1)","Gants usage unique \n(3)","Gants Vinyle                  (2 )   (3)   (3)   (2)                  ",null,null,null,"Mousse lavante",null,null,null,null,null,null,null,null,null,null,null,"Change complet NUIT       (3)",null,null,null,"ID SLIP EXPERT\nMAXI PRIME\n(2)",null,null,null,null,null,null,null,null,null,null,null,null,null,"Aleze           60 X90            (1)","Gants usage unique (3)","Gants Vinyle                    (2)   (3)    (3)    (2)",null,null,null,"Mousse lavante     "]
[null,null,null,null,null,null,"M",null,null,null,"M",null,null,null,null,null,null,null,null,null,null,null,null,null,null,"S","M","L","XL",null,null,null,null,null,null,null,null,null,null,null,null,null,"M",null,null,null,"M",null,null,null,null,null,null,null,null,null,null,null,null,null,null,"S","M","L","XL"]
["Paquets",null,null,null,null,null,null,null,null,null,null,null,null,null,null,null,null,null,null,null,null,null,null,null,null,null,null,null,null,null,null,null,null,null,null,null,"Paquets",null,null,null,null,null,3,null,null,null,2,null,null,null,null,null,null,null,null,null,null,null,null,1,3,2,3,3,2,1]
[]
["S",null,null,null,null,"Change complet NUIT  (6)",null,null,null,"ID SLIP EXPERT\nMAXI PRIME (2)",null,null,null,null,null,null,null,null,null,null,null,null,null,"Aleze           60 X90            (3)","Gants usage unique \n(6)","Gants Vinyle                  (2 )   (3)   (3)   (2)                  ",null,null,null,"Mousse lavante",null,null,null,null,null,null,null,null,null,null,null,"Change complet NUIT       (6)",null,null,null,"ID SLIP EXPERT\nMAXI PRIME\n(2)",null,null,null,null,null,null,null,null,null,null,null,null,null,"Aleze           60 X90            (3)","Gants usage unique (6)","Gants Vinyle                    (2)   (3)    (3)    (2)",null,null,null,"Mousse lavante     "]
[null,null,null,null,null,null,"M",null,null,null,"M",null,null,null,null,null,null,null,null,null,null,null,null,null,null,"S","M","L","XL",null,null,null,null,null,null,null,null,null,null,null,null,null,"M",null,null,null,"M",null,null,null,null,null,null,null,null,null,null,null,null,null,null,"S","M","L","XL"]
["Paquets",null,null,null,null,null,null,null,null,null,null,null,null,null,null,null,null,null,null,null,null,null,null,null,null,null,null,null,null,null,null,null,null,null,null,null,"Paquets",null,null,null,null,null,6,null,null,null,2,null,null,null,null,null,null,null,null,null,null,null,null,3,6,2,3,3,2,1]
[]
["L",null,null,null,null,"Change complet NUIT  (8)",null,null,null,null,null,null,null,null,null,null,null,null,null,null,null,null,null,"Aleze           60 X90            (2)","Gants usage unique \n(3)","Gants Vinyle                  (2 )   (3)   (3)   (2)                  ",null,null,null,"Mousse lavante",null,null,null,null,null,null,null,null,null,null,null,"Change complet NUIT       (8)",null,null,null,null,null,null,null,null,null,null,null,null,null,null,null,null,null,"Aleze           60 X90            (2)","Gants usage unique (3)","Gants Vinyle                    (2)   (3)    (3)    (2)",null,null,null,"Mousse lavante     "]
[null,null,null,null,null,"S",null,null,null,null,null,null,null,null,null,null,null,null,null,null,null,null,null,null,null,"S","M","L","XL",null,null,null,null,null,null,null,null,null,null,null,null,"S",null,null,null,null,null,null,null,null,null,null,null,null,null,null,null,null,null,null,null,"S","M","L","XL"]
["Paquets",null,null,null,null,null,null,null,null,null,null,null,null,null,null,null,null,null,null,null,null,null,null,null,null,null,null,null,null,null,null,null,null,null,null,null,"Paquets",null,null,null,null,8,null,null,null,null,null,null,null,null,null,null,null,null,null,null,null,null,null,2,3,2,3,3,2,1]
[]
["R",null,null,null,null,"Change complet NUIT  (6)",null,null,null,"ID SLIP EXPERT\nMAXI PRIME (2)",null,null,null,null,null,null,null,null,null,null,null,null,"Aleze           60 X60            (2)","Aleze           60 X90            (2)","Gants usage unique \n(4)","Gants Vinyle                  (2 )   (3)   (3)   (2)                  ",null,null,null,"Mousse lavante",null,null,null,null,null,null,null,null,null,null,null,"Change complet NUIT       (6)",null,null,null,"ID SLIP EXPERT\nMAXI PRIME\n(2)",null,null,null,null,null,null,null,null,null,null,null,null,"Aleze           60 X60            (2)","Aleze           60 X90            (2)","Gants usage unique (4)","Gants Vinyle                    (2)   (3)    (3)    (2)",null,null,null,"Mousse lavante     "]
[null,null,null,null,null,null,"M",null,null,null,"M",null,null,null,null,null,null,null,null,null,null,null,null,null,null,"S","M","L","XL",null,null,null,null,null,null,null,null,null,null,null,null,null,"M",null,null,null,"M",null,null,null,null,null,null,null,null,null,null,null,null,null,null,"S","M","L","XL"]
["Paquets",null,null,null,null,null,null,null,null,null,null,null,null,null,null,null,null,null,null,null,null,null,null,null,null,null,null,null,null,null,null,null,null,null,null,null,"Paquets",null,null,null,null,null,6,null,null,null,2,null,null,null,null,null,null,null,null,null,null,null,2,2,4,2,3,3,2,1]
[]
["C",null,null,null,null,null,null,null,null,"ID SLIP EXPERT\nMAXI PRIME (2)",null,null,null,null,null,null,null,null,null,null,null,"Anaform Extra              (2)",null,null,"Gants usage unique \n(4)","Gants Vinyle                  (2 )   (3)   (3)   (2)                  ",null,null,null,"Mousse lavante",null,null,null,null,null,null,null,null,null,null,null,null,null,null,null,"ID SLIP EXPERT\nMAXI PRIME\n(2)",null,null,null,null,null,null,null,null,null,null,null,"Anaform Extra              (2)",null,null,"Gants usage unique (4)","Gants Vinyle                    (2)   (3)    (3)    (2)",null,null,null,"Mousse lavante     "]
[null,null,null,null,null,null,null,null,null,null,null,"L",null,null,null,null,null,null,null,null,null,null,null,null,null,"S","M","L","XL",null,null,null,null,null,null,null,null,null,null,null,null,null,null,null,null,null,null,"L",null,null,null,null,null,null,null,null,null,null,null,null,null,"S","M","L","XL"]
["Paquets",null,null,null,null,null,null,null,null,null,null,null,null,null,null,null,null,null,null,null,null,null,null,null,null,null,null,null,null,null,null,null,null,null,null,null,"Paquets",null,null,null,null,null,null,null,null,null,null,2,null,null,null,null,null,null,null,null,null,2,null,null,4,2,3,3,2,1]
[]
["B",null,null,null,null,"Change complet NUIT  (8)",null,null,null,"ID SLIP EXPERT\nMAXI PRIME (3)",null,null,null,null,null,null,null,null,null,null,null,null,null,"Aleze           60 X90            (2)","Gants usage unique \n(5)","Gants Vinyle                  (2 )   (3)   (3)   (2)                  ",null,null,null,"Mousse lavante",null,null,null,null,null,null,null,null,null,null,null,"Change complet NUIT       (8)",null,null,null,"ID SLIP EXPERT\nMAXI PRIME\n(3)",null,null,null,null,null,null,null,null,null,null,null,null,null,"Aleze           60 X90            (2)","Gants usage unique (5)","Gants Vinyle                    (2)   (3)    (3)    (2)",null,null,null,"Mousse lavante     "]
[null,null,null,null,null,"S",null,null,null,"S",null,null,null,null,null,null,null,null,null,null,null,null,null,null,null,"S","M","L","XL",null,null,null,null,null,null,null,null,null,null,null,null,"S",null,null,null,"S",null,null,null,null,null,null,null,null,null,null,null,null,null,null,null,"S","M","L","XL"]
["Paquets",null,null,null,null,null,null,null,null,null,null,null,null,null,null,null,null,null,null,null,null,null,null,null,null,null,null,null,null,null,null,null,null,null,null,null,"Paquets",null,null,null,null,8,null,null,null,3,null,null,null,null,null,null,null,null,null,null,null,null,null,2,5,2,3,3,2,1]
[]
["M-C",null,null,null,null,"Change complet NUIT  (5)",null,null,null,"ID SLIP EXPERT\nMAXI PRIME (3)",null,null,null,null,null,null,null,null,null,null,null,null,null,"Aleze           60 X90            (4)","Gants usage unique \n(8)","Gants Vinyle                  (2 )   (3)   (3)   (2)                  ",null,null,null,"Mousse lavante",null,null,null,null,null,null,null,null,null,null,null,"Change complet NUIT       (5)",null,null,null,"ID SLIP EXPERT\nMAXI PRIME\n(3)",null,null,null,null,null,null,null,null,null,null,null,null,null,"Aleze           60 X90            (4)","Gants usage unique (8)","Gants Vinyle                    (2)   (3)    (3)    (2)",null,null,null,"Mousse lavante     "]
[null,null,null,null,null,null,null,"L",null,null,null,"L",null,null,null,null,null,null,null,null,null,null,null,null,null,"S","M","L","XL",null,null,null,null,null,null,null,null,null,null,null,null,null,null,"L",null,null,null,"L",null,null,null,null,null,null,null,null,null,null,null,null,null,"S","M","L","XL"]
["Paquets",null,null,null,null,null,null,null,null,null,null,null,null,null,null,null,null,null,null,null,null,null,null,null,null,null,null,null,null,null,null,null,null,null,null,null,"Paquets",null,null,null,null,null,null,5,null,null,null,3,null,null,null,null,null,null,null,null,null,null,null,4,8,2,3,3,2,1]
[]
["S",null,null,null,null,"Change complet NUIT  (3)",null,null,null,null,null,null,null,null,null,null,null,"Pants                                       (3)",null,null,null,null,null,null,"Gants usage unique \n(2)","Gants Vinyle                  (2 )   (3)   (3)   (2)                  ",null,null,null,"Mousse lavante",null,null,null,null,null,null,null,null,null,null,null,"Change complet NUIT       (3)",null,null,null,null,null,null,null,null,null,null,null,"Pants \n(2)",null,null,null,null,null,null,"Gants usage unique (2)","Gants Vinyle                    (2)   (3)    (3)    (2)",null,null,null,"Mousse lavante     "]
[null,null,null,null,null,null,"M",null,null,null,null,null,null,null,null,null,null,null,"M",null,null,null,null,null,null,"S","M","L","XL",null,null,null,null,null,null,null,null,null,null,null,null,null,"M",null,null,null,null,null,null,null,null,null,null,null,"M",null,null,null,null,null,null,"S","M","L","XL"]
["Paquets",null,null,null,null,null,null,null,null,null,null,null,null,null,null,null,null,null,null,null,null,null,null,null,null,null,null,null,null,null,null,null,null,null,null,null,"Paquets",null,null,null,null,null,3,null,null,null,null,null,null,null,null,null,null,null,2,null,null,null,null,null,2,2,3,3,2,1]
[]
["A",null,null,null,null,"Change complet NUIT  (4)",null,null,null,"ID SLIP EXPERT\nMAXI PRIME (2)",null,null,null,null,null,null,null,null,null,null,null,null,null,"Aleze           60 X90            (1)","Gants usage unique \n(3)","Gants Vinyle                  (2 )   (3)   (3)   (2)                  ",null,null,null,"Mousse lavante",null,null,null,null,null,null,null,null,null,null,null,"Change complet NUIT       (4)",null,null,null,"ID SLIP EXPERT\nMAXI PRIME\n(2)",null,null,null,null,null,null,null,null,null,null,null,null,null,"Aleze           60 X90            (1)","Gants usage unique (3)","Gants Vinyle                    (2)   (3)    (3)    (2)",null,null,null,"Mousse lavante     "]
[null,null,null,null,null,null,null,"L",null,null,"M",null,null,null,null,null,null,null,null,null,null,null,null,null,null,"S","M","L","XL",null,null,null,null,null,null,null,null,null,null,null,null,null,null,"L",null,null,"M",null,null,null,null,null,null,null,null,null,null,null,null,null,null,"S","M","L","XL"]
["Paquets",null,null,null,null,null,null,null,null,null,null,null,null,null,null,null,null,null,null,null,null,null,null,null,null,null,null,null,null,null,null,null,null,null,null,null,"Paquets",null,null,null,null,null,null,4,null,null,2,null,null,null,null,null,null,null,null,null,null,null,null,1,3,2,3,3,2,1]

{"sheet":"Stock à réintégrer O","index":8,"n_rows":49,"n_cols":30,"rows_kept":49,"cut":false,"hidden":true,"merged":[[0,1,0,4],[46,25,46,28],[42,24,43,24],[42,25,42,28],[46,0,47,0],[46,1,46,4],[46,5,46,8],[46,21,47,21],[46,22,47,22],[46,23,47,23],[46,24,47,24],[42,0,43,0],[42,1,42,4],[42,5,42,8],[42,21,43,21],[42,22,43,22],[42,23,43,23],[42,9,42,12],[42,13,42,16],[42,17,42,20],[46,9,46,12],[46,13,46,16],[46,17,46,20],[38,0,39,0],[38,1,38,4],[38,5,38,8],[38,21,39,21],[38,22,39,22],[38,23,39,23],[38,24,39,24],[38,25,38,28],[38,9,38,12],[38,13,38,16],[38,17,38,20],[34,0,35,0],[34,1,34,4],[34,5,34,8],[34,21,35,21],[34,22,35,22],[34,23,35,23],[34,24,35,24],[34,25,34,28],[34,9,34,12],[34,13,34,16],[34,17,34,20],[26,24,27,24],[26,25,26,28],[30,0,31,0],[30,1,30,4],[30,5,30,8],[30,21,31,21],[30,22,31,22],[30,23,31,23],[30,24,31,24],[26,0,27,0],[26,1,26,4],[26,5,26,8],[26,21,27,21],[26,22,27,22],[26,23,27,23],[30,25,30,28],[26,9,26,12],[26,13,26,16],[26,17,26,20],[30,9,30,12],[30,13,30,16],[30,17,30,20],[22,0,23,0],[22,1,22,4],[22,5,22,8],[22,21,23,21],[22,22,23,22],[22,23,23,23],[22,24,23,24],[22,25,22,28],[22,9,22,12],[22,13,22,16],[22,17,22,20],[18,0,19,0],[18,1,18,4],[18,5,18,8],[18,21,19,21],[18,22,19,22],[18,23,19,23],[18,24,19,24],[18,25,18,28],[18,9,18,12],[18,13,18,16],[18,17,18,20],[10,24,11,24],[10,25,10,28],[14,0,15,0],[14,1,14,4],[14,5,14,8],[14,21,15,21],[14,22,15,22],[14,23,15,23],[14,24,15,24],[10,0,11,0],[10,1,10,4],[10,5,10,8],[10,21,11,21],[10,22,11,22],[10,23,11,23],[14,25,14,28],[10,9,10,12],[10,13,10,16],[10,17,10,20],[14,9,14,12],[14,13,14,16],[14,17,14,20],[6,0,7,0],[6,1,6,4],[6,5,6,8],[6,21,7,21],[6,22,7,22],[6,23,7,23],[6,24,7,24],[6,25,6,28],[6,9,6,12],[6,13,6,16],[6,17,6,20],[1,1,1,25],[2,0,3,0],[2,1,2,4],[2,5,2,8],[2,21,3,21],[2,22,3,22],[2,23,3,23],[2,24,3,24],[2,25,2,28],[2,9,2,12],[2,13,2,16],[2,17,2,20]]}
["Date:",{"$f":"'Stock avant commande O'!B1:E1","v":"2021-03-14"}]
[null,"Stock à réintégrer dans les chambres O"]
["F",null,null,null,null,"Change complet NUIT ",null,null,null,null,null,null,null,null,null,null,null,null,null,null,null,null,null,"Aleze           60 X90           ","Gants usage unique ","Gants Vinyle                      ",null,null,null,"Mousse lavante"]
[null,null,null,null,null,null,null,"L",null,null,null,null,null,null,null,null,null,null,null,null,null,null,null,null,null,"S","M","L","XL"]
["Paquets",null,null,null,null,null,null,{"$f":"SUM('Stock avant commande O'!AR5)-'Stock avant commande O'!H5","v":5},null,null,null,null,null,null,null,null,null,null,null,null,null,null,null,{"$f":"SUM('Stock avant commande O'!BH5)-'Stock avant commande O'!X5","v":2},{"$f":"SUM('Stock avant commande O'!BI5)-'Stock avant commande O'!Y5","v":5},{"$f":"SUM('Stock avant commande O'!BJ5)-'Stock avant commande O'!Z5","v":2},{"$f":"SUM('Stock avant commande O'!BK5)-'Stock avant commande O'!AA5","v":3},{"$f":"SUM('Stock avant commande O'!BL5)-'Stock avant commande O'!AB5","v":3},{"$f":"SUM('Stock avant commande O'!BM5)-'Stock avant commande O'!AC5","v":2},{"$f":"SUM('Stock avant commande O'!BN5)-'Stock avant commande O'!AD5","v":1}]
[]
["C",null,null,null,null,"Change complet NUIT ",null,null,null,"ID SLIP EXPERT\nMAXI PRIME ",null,null,null,null,null,null,null,null,null,null,null,null,null,"Aleze           60 X90           ","Gants usage unique ","Gants Vinyle                      ",null,null,null,"Mousse lavante"]
[null,null,null,null,null,null,"M",null,null,null,"M",null,null,null,null,null,null,null,null,null,null,null,null,null,null,"S","M","L","XL"]
["Paquets",null,null,null,null,null,{"$f":"SUM('Stock avant commande O'!AQ9)-'Stock avant commande O'!G9","v":2},null,null,null,{"$f":"SUM('Stock avant commande O'!AU9)-'Stock avant commande O'!K9","v":6},null,null,null,null,null,null,null,null,null,null,null,null,{"$f":"SUM('Stock avant commande O'!BH9)-'Stock avant commande O'!X9","v":3},{"$f":"SUM('Stock avant commande O'!BI9)-'Stock avant commande O'!Y9","v":8},{"$f":"SUM('Stock avant commande O'!BJ9)-'Stock avant commande O'!Z9","v":2},{"$f":"SUM('Stock avant commande O'!BK9)-'Stock avant commande O'!AA9","v":3},{"$f":"SUM('Stock avant commande O'!BL9)-'Stock avant commande O'!AB9","v":3},{"$f":"SUM('Stock avant commande O'!BM9)-'Stock avant commande O'!AC9","v":2},{"$f":"SUM('Stock avant commande O'!BN9)-'Stock avant commande O'!AD9","v":1}]
[]
["A",null,null,null,null,"Change complet NUIT ",null,null,null,null,null,null,null,null,null,null,null,"Pants                                      ",null,null,null,null,null,"Aleze           60 X90           ","Gants usage unique ","Gants Vinyle                      ",null,null,null,"Mousse lavante"]
[null,null,null,null,null,null,null,"L",null,null,null,null,null,null,null,null,null,null,null,"L",null,null,null,null,null,"S","M","L","XL"]
["Paquets",null,null,null,null,null,null,{"$f":"SUM('Stock avant commande O'!AR13)-'Stock avant commande O'!H13","v":2},null,null,null,null,null,null,null,null,null,null,null,{"$f":"SUM('Stock avant commande O'!BD13)-'Stock avant commande O'!T13","v":3},null,null,null,{"$f":"SUM('Stock avant commande O'!BH13)-'Stock avant commande O'!X13","v":3},{"$f":"SUM('Stock avant commande O'!BI13)-'Stock avant commande O'!Y13","v":3},{"$f":"SUM('Stock avant commande O'!BJ13)-'Stock avant commande O'!Z13","v":2},{"$f":"SUM('Stock avant commande O'!BK13)-'Stock avant commande O'!AA13","v":3},{"$f":"SUM('Stock avant commande O'!BL13)-'Stock avant commande O'!AB13","v":3},{"$f":"SUM('Stock avant commande O'!BM13)-'Stock avant commande O'!AC13","v":2},{"$f":"SUM('Stock avant commande O'!BN13)-'Stock avant commande O'!AD13","v":1}]
[]
["M-L",null,null,null,null,"Change complet NUIT ",null,null,null,"ID SLIP EXPERT\nMAXI PRIME",null,null,null,null,null,null,null,null,null,null,null,null,null,"Aleze           60 X90           ","Gants usage unique ","Gants Vinyle                      ",null,null,null,"Mousse lavante"]
[null,null,null,null,null,null,"M",null,null,null,"M",null,null,null,null,null,null,null,null,null,null,null,null,null,null,"S","M","L","XL"]
["Paquets",null,null,null,null,null,{"$f":"SUM('Stock avant commande O'!AQ17)-'Stock avant commande O'!G17","v":3},null,null,null,{"$f":"SUM('Stock avant commande O'!AU17)-'Stock avant commande O'!K17","v":2},null,null,null,null,null,null,null,null,null,null,null,null,{"$f":"SUM('Stock avant commande O'!BH17)-'Stock avant commande O'!X17","v":1},{"$f":"SUM('Stock avant commande O'!BI17)-'Stock avant commande O'!Y17","v":3},{"$f":"SUM('Stock avant commande O'!BJ17)-'Stock avant commande O'!Z17","v":2},{"$f":"SUM('Stock avant commande O'!BK17)-'Stock avant commande O'!AA17","v":3},{"$f":"SUM('Stock avant commande O'!BL17)-'Stock avant commande O'!AB17","v":3},{"$f":"SUM('Stock avant commande O'!BM17)-'Stock avant commande O'!AC17","v":2},{"$f":"SUM('Stock avant commande O'!BN17)-'Stock avant commande O'!AD17","v":1}]
[]
["S",null,null,null,null,"Change complet NUIT ",null,null,null,"ID SLIP EXPERT\nMAXI PRIME",null,null,null,null,null,null,null,null,null,null,null,null,null,"Aleze           60 X90           ","Gants usage unique ","Gants Vinyle                      ",null,null,null,"Mousse lavante"]
[null,null,null,null,null,null,"M",null,null,null,"M",null,null,null,null,null,null,null,null,null,null,null,null,null,null,"S","M","L","XL"]
["Paquets",null,null,null,null,null,{"$f":"SUM('Stock avant commande O'!AQ21)-'Stock avant commande O'!G21","v":6},null,null,null,{"$f":"SUM('Stock avant commande O'!AU21)-'Stock avant commande O'!K21","v":2},null,null,null,null,null,null,null,null,null,null,null,null,{"$f":"SUM('Stock avant commande O'!BH21)-'Stock avant commande O'!X21","v":3},{"$f":"SUM('Stock avant commande O'!BI21)-'Stock avant commande O'!Y21","v":6},{"$f":"SUM('Stock avant commande O'!BJ21)-'Stock avant commande O'!Z21","v":2},{"$f":"SUM('Stock avant commande O'!BK21)-'Stock avant commande O'!AA21","v":3},{"$f":"SUM('Stock avant commande O'!BL21)-'Stock avant commande O'!AB21","v":3},{"$f":"SUM('Stock avant commande O'!BM21)-'Stock avant commande O'!AC21","v":2},{"$f":"SUM('Stock avant commande O'!BN21)-'Stock avant commande O'!AD21","v":1}]
[]
["L",null,null,null,null,"Change complet NUIT ",null,null,null,null,null,null,null,null,null,null,null,null,null,null,null,null,null,"Aleze           60 X90           ","Gants usage unique ","Gants Vinyle                      ",null,null,null,"Mousse lavante"]
[null,null,null,null,null,"S",null,null,null,null,null,null,null,null,null,null,null,null,null,null,null,null,null,null,null,"S","M","L","XL"]
["Paquets",null,null,null,null,{"$f":"SUM('Stock avant commande O'!AP25)-'Stock avant commande O'!F25","v":8},null,null,null,null,null,null,null,null,null,null,null,null,null,null,null,null,null,{"$f":"SUM('Stock avant commande O'!BH25)-'Stock avant commande O'!X25","v":2},{"$f":"SUM('Stock avant commande O'!BI25)-'Stock avant commande O'!Y25","v":3},{"$f":"SUM('Stock avant commande O'!BJ25)-'Stock avant commande O'!Z25","v":2},{"$f":"SUM('Stock avant commande O'!BK25)-'Stock avant commande O'!AA25","v":3},{"$f":"SUM('Stock avant commande O'!BL25)-'Stock avant commande O'!AB25","v":3},{"$f":"SUM('Stock avant commande O'!BM25)-'Stock avant commande O'!AC25","v":2},{"$f":"SUM('Stock avant commande O'!BN25)-'Stock avant commande O'!AD25","v":1}]
[]
["R",null,null,null,null,"Change complet NUIT ",null,null,null,"ID SLIP EXPERT\nMAXI PRIME",null,null,null,null,null,null,null,null,null,null,null,null,"Aleze           60 X60           ","Aleze           60 X90           ","Gants usage unique ","Gants Vinyle                      ",null,null,null,"Mousse lavante"]
[null,null,null,null,null,null,"M",null,null,null,"M",null,null,null,null,null,null,null,null,null,null,null,null,null,null,"S","M","L","XL"]
["Paquets",null,null,null,null,null,{"$f":"SUM('Stock avant commande O'!AQ29)-'Stock avant commande O'!G29","v":6},null,null,null,{"$f":"SUM('Stock avant commande O'!AU29)-'Stock avant commande O'!K29","v":2},null,null,null,null,null,null,null,null,null,null,null,{"$f":"SUM('Stock avant commande O'!BG29)-'Stock avant commande O'!W29","v":2},{"$f":"SUM('Stock avant commande O'!BH29)-'Stock avant commande O'!X29","v":2},{"$f":"SUM('Stock avant commande O'!BI29)-'Stock avant commande O'!Y29","v":4},{"$f":"SUM('Stock avant commande O'!BJ29)-'Stock avant commande O'!Z29","v":2},{"$f":"SUM('Stock avant commande O'!BK29)-'Stock avant commande O'!AA29","v":3},{"$f":"SUM('Stock avant commande O'!BL29)-'Stock avant commande O'!AB29","v":3},{"$f":"SUM('Stock avant commande O'!BM29)-'Stock avant commande O'!AC29","v":2},{"$f":"SUM('Stock avant commande O'!BN29)-'Stock avant commande O'!AD29","v":1}]
[]
["C",null,null,null,null,null,null,null,null,"ID SLIP EXPERT\nMAXI PRIME",null,null,null,null,null,null,null,null,null,null,null,"Anaform Extra              (2)",null,null,"Gants usage unique ","Gants Vinyle                      ",null,null,null,"Mousse lavante"]
[null,null,null,null,null,null,null,null,null,null,null,"L",null,null,null,null,null,null,null,null,null,null,null,null,null,"S","M","L","XL"]
["Paquets",null,null,null,null,null,null,null,null,null,null,{"$f":"SUM('Stock avant commande O'!AV33)-'Stock avant commande O'!L33","v":2},null,null,null,null,null,null,null,null,null,{"$f":"SUM('Stock avant commande O'!BF33)-'Stock avant commande O'!V33","v":2},null,null,{"$f":"SUM('Stock avant commande O'!BI33)-'Stock avant commande O'!Y33","v":4},{"$f":"SUM('Stock avant commande O'!BJ33)-'Stock avant commande O'!Z33","v":2},{"$f":"SUM('Stock avant commande O'!BK33)-'Stock avant commande O'!AA33","v":3},{"$f":"SUM('Stock avant commande O'!BL33)-'Stock avant commande O'!AB33","v":3},{"$f":"SUM('Stock avant commande O'!BM33)-'Stock avant commande O'!AC33","v":2},{"$f":"SUM('Stock avant commande O'!BN33)-'Stock avant commande O'!AD33","v":1}]
[]
["B",null,null,null,null,"Change complet NUIT ",null,null,null,"ID SLIP EXPERT\nMAXI PRIME",null,null,null,null,null,null,null,null,null,null,null,null,null,"Aleze           60 X90           ","Gants usage unique ","Gants Vinyle                      ",null,null,null,"Mousse lavante"]
[null,null,null,null,null,"S",null,null,null,"S",null,null,null,null,null,null,null,null,null,null,null,null,null,null,null,"S","M","L","XL"]
["Paquets",null,null,null,null,{"$f":"SUM('Stock avant commande O'!AP37)-'Stock avant commande O'!F37","v":8},null,null,null,{"$f":"SUM('Stock avant commande O'!AT37)-'Stock avant commande O'!J37","v":3},null,null,null,null,null,null,null,null,null,null,null,null,null,{"$f":"SUM('Stock avant commande O'!BH37)-'Stock avant commande O'!X37","v":2},{"$f":"SUM('Stock avant commande O'!BI37)-'Stock avant commande O'!Y37","v":5},{"$f":"SUM('Stock avant commande O'!BJ37)-'Stock avant commande O'!Z37","v":2},{"$f":"SUM('Stock avant commande O'!BK37)-'Stock avant commande O'!AA37","v":3},{"$f":"SUM('Stock avant commande O'!BL37)-'Stock avant commande O'!AB37","v":3},{"$f":"SUM('Stock avant commande O'!BM37)-'Stock avant commande O'!AC37","v":2},{"$f":"SUM('Stock avant commande O'!BN37)-'Stock avant commande O'!AD37","v":1}]
[]
["M-C",null,null,null,null,"Change complet NUIT ",null,null,null,"ID SLIP EXPERT\nMAXI PRIME (6)",null,null,null,null,null,null,null,null,null,null,null,null,null,"Aleze           60 X90           ","Gants usage unique ","Gants Vinyle                      ",null,null,null,"Mousse lavante"]
[null,null,null,null,null,null,null,"L",null,null,null,"L",null,null,null,null,null,null,null,null,null,null,null,null,null,"S","M","L","XL"]
["Paquets",null,null,null,null,null,null,{"$f":"SUM('Stock avant commande O'!AR41)-'Stock avant commande O'!H41","v":5},null,null,null,{"$f":"SUM('Stock avant commande O'!AV41)-'Stock avant commande O'!L41","v":3},null,null,null,null,null,null,null,null,null,null,null,{"$f":"SUM('Stock avant commande O'!BH41)-'Stock avant commande O'!X41","v":4},{"$f":"SUM('Stock avant commande O'!BI41)-'Stock avant commande O'!Y41","v":8},{"$f":"SUM('Stock avant commande O'!BJ41)-'Stock avant commande O'!Z41","v":2},{"$f":"SUM('Stock avant commande O'!BK41)-'Stock avant commande O'!AA41","v":3},{"$f":"SUM('Stock avant commande O'!BL41)-'Stock avant commande O'!AB41","v":3},{"$f":"SUM('Stock avant commande O'!BM41)-'Stock avant commande O'!AC41","v":2},{"$f":"SUM('Stock avant commande O'!BN41)-'Stock avant commande O'!AD41","v":1}]
[]
["S",null,null,null,null,"Change complet NUIT ",null,null,null,null,null,null,null,null,null,null,null,"Pants                                      ",null,null,null,null,null,null,"Gants usage unique ","Gants Vinyle                      ",null,null,null,"Mousse lavante"]
[null,null,null,null,null,null,"M",null,null,null,null,null,null,null,null,null,null,null,"M",null,null,null,null,null,null,"S","M","L","XL"]
["Paquets",null,null,null,null,null,{"$f":"SUM('Stock avant commande O'!AQ45)-'Stock avant commande O'!G45","v":3},null,null,null,null,null,null,null,null,null,null,null,{"$f":"SUM('Stock avant commande O'!BC45)-'Stock avant commande O'!S45","v":2},null,null,null,null,null,{"$f":"SUM('Stock avant commande O'!BI45)-'Stock avant commande O'!Y45","v":2},{"$f":"SUM('Stock avant commande O'!BJ45)-'Stock avant commande O'!Z45","v":2},{"$f":"SUM('Stock avant commande O'!BK45)-'Stock avant commande O'!AA45","v":3},{"$f":"SUM('Stock avant commande O'!BL45)-'Stock avant commande O'!AB45","v":3},{"$f":"SUM('Stock avant commande O'!BM45)-'Stock avant commande O'!AC45","v":2},{"$f":"SUM('Stock avant commande O'!BN45)-'Stock avant commande O'!AD45","v":1}]
[]
["A",null,null,null,null,"Change complet NUIT ",null,null,null,"ID SLIP EXPERT\nMAXI PRIME",null,null,null,null,null,null,null,null,null,null,null,null,null,"Aleze           60 X90           ","Gants usage unique ","Gants Vinyle                      ",null,null,null,"Mousse lavante"]
[null,null,null,null,null,null,null,"L",null,null,"M",null,null,null,null,null,null,null,null,null,null,null,null,null,null,"S","M","L","XL"]
["Paquets",null,null,null,null,null,null,{"$f":"SUM('Stock avant commande O'!AR49)-'Stock avant commande O'!H49","v":4},null,null,{"$f":"SUM('Stock avant commande O'!AU49)-'Stock avant commande O'!K49","v":2},null,null,null,null,null,null,null,null,null,null,null,null,{"$f":"SUM('Stock avant commande O'!BH49)-'Stock avant commande O'!X49","v":1},{"$f":"SUM('Stock avant commande O'!BI49)-'Stock avant commande O'!Y49","v":3},{"$f":"SUM('Stock avant commande O'!BJ49)-'Stock avant commande O'!Z49","v":2},{"$f":"SUM('Stock avant commande O'!BK49)-'Stock avant commande O'!AA49","v":3},{"$f":"SUM('Stock avant commande O'!BL49)-'Stock avant commande O'!AB49","v":3},{"$f":"SUM('Stock avant commande O'!BM49)-'Stock avant commande O'!AC49","v":2},{"$f":"SUM('Stock avant commande O'!BN49)-'Stock avant commande O'!AD49","v":1}]

{"sheet":"COMMANDE O","index":9,"n_rows":7,"n_cols":30,"rows_kept":7,"cut":false,"hidden":true,"merged":[[3,29,4,29],[3,1,3,4],[3,9,3,12],[3,17,3,20],[3,21,4,21],[3,22,4,22],[3,13,3,16],[3,5,3,8],[0,1,0,4],[1,0,1,25],[3,23,4,23],[3,24,4,24],[3,25,3,28]]}
["Date:",{"$f":"'Stock avant commande O'!B1:E1","v":"2021-03-14"}]
["Commande protections Unité O"]
[]
[null,"Change complet JOUR       (4 paquets par carton)",null,null,null,"Change complet NUIT       (4 paquets par carton)",null,null,null,"ID SLIP EXPERT\nMAXI PRIME\n(3 paquets par carton)",null,null,null,"TENA SLIP MAX\n(4 paquets par carton)",null,null,null,"Pants                                       (8 paquets par carton)",null,null,null,"Anaform Extra              (4 paquets par carton)","Aleze           60 X60            (4 paquets par carton)","Aleze           60 X90            (4 paquets par carton)","Gants usage unique (20 paquets \npar carton)","Gants Vinyle                      (10 boites \npar carton)",null,null,null,"Mousse lavante      (12 par carton)"]
[null,"S","M","L","XL","S","M","L","XL","S","M","L","XL","S","M","L","XL","S","M","L","XL",null,null,null,null,"S","M","L","XL"]
["Paquets",{"$f":"SUM('Stock à réintégrer O'!B5+'Stock à réintégrer O'!B9+'Stock à réintégrer O'!B13+'Stock à réintégrer O'!B17+'Stock à réintégrer O'!B21+'Stock à réintégrer O'!B25+'Stock à réintégrer O'!B29+'Stock à réintégrer O'!B33+'Stock à réintégrer O'!B37+'Stock à réintégrer O'!B41+'Stock à réintégrer O'!B45+'Stock à réintégrer O'!B49)","v":0},{"$f":"SUM('Stock à réintégrer O'!C5+'Stock à réintégrer O'!C9+'Stock à réintégrer O'!C13+'Stock à réintégrer O'!C17+'Stock à réintégrer O'!C21+'Stock à réintégrer O'!C25+'Stock à réintégrer O'!C29+'Stock à réintégrer O'!C33+'Stock à réintégrer O'!C37+'Stock à réintégrer O'!C41+'Stock à réintégrer O'!C45+'Stock à réintégrer O'!C49)","v":0},{"$f":"SUM('Stock à réintégrer O'!D5+'Stock à réintégrer O'!D9+'Stock à réintégrer O'!D13+'Stock à réintégrer O'!D17+'Stock à réintégrer O'!D21+'Stock à réintégrer O'!D25+'Stock à réintégrer O'!D29+'Stock à réintégrer O'!D33+'Stock à réintégrer O'!D37+'Stock à réintégrer O'!D41+'Stock à réintégrer O'!D45+'Stock à réintégrer O'!D49)","v":0},{"$f":"SUM('Stock à réintégrer O'!E5+'Stock à réintégrer O'!E9+'Stock à réintégrer O'!E13+'Stock à réintégrer O'!E17+'Stock à réintégrer O'!E21+'Stock à réintégrer O'!E25+'Stock à réintégrer O'!E29+'Stock à réintégrer O'!E33+'Stock à réintégrer O'!E37+'Stock à réintégrer O'!E41+'Stock à réintégrer O'!E45+'Stock à réintégrer O'!E49)","v":0},{"$f":"SUM('Stock à réintégrer O'!F5+'Stock à réintégrer O'!F9+'Stock à réintégrer O'!F13+'Stock à réintégrer O'!F17+'Stock à réintégrer O'!F21+'Stock à réintégrer O'!F25+'Stock à réintégrer O'!F29+'Stock à réintégrer O'!F33+'Stock à réintégrer O'!F37+'Stock à réintégrer O'!F41+'Stock à réintégrer O'!F45+'Stock à réintégrer O'!F49)","v":16},{"$f":"SUM('Stock à réintégrer O'!G5+'Stock à réintégrer O'!G9+'Stock à réintégrer O'!G13+'Stock à réintégrer O'!G17+'Stock à réintégrer O'!G21+'Stock à réintégrer O'!G25+'Stock à réintégrer O'!G29+'Stock à réintégrer O'!G33+'Stock à réintégrer O'!G37+'Stock à réintégrer O'!G41+'Stock à réintégrer O'!G45+'Stock à réintégrer O'!G49)","v":20},{"$f":"SUM('Stock à réintégrer O'!H5+'Stock à réintégrer O'!H9+'Stock à réintégrer O'!H13+'Stock à réintégrer O'!H17+'Stock à réintégrer O'!H21+'Stock à réintégrer O'!H25+'Stock à réintégrer O'!H29+'Stock à réintégrer O'!H33+'Stock à réintégrer O'!H37+'Stock à réintégrer O'!H41+'Stock à réintégrer O'!H45+'Stock à réintégrer O'!H49)","v":16},{"$f":"SUM('Stock à réintégrer O'!I5+'Stock à réintégrer O'!I9+'Stock à réintégrer O'!I13+'Stock à réintégrer O'!I17+'Stock à réintégrer O'!I21+'Stock à réintégrer O'!I25+'Stock à réintégrer O'!I29+'Stock à réintégrer O'!I33+'Stock à réintégrer O'!I37+'Stock à réintégrer O'!I41+'Stock à réintégrer O'!I45+'Stock à réintégrer O'!I49)","v":0},{"$f":"SUM('Stock à réintégrer O'!J5+'Stock à réintégrer O'!J9+'Stock à réintégrer O'!J13+'Stock à réintégrer O'!J17+'Stock à réintégrer O'!J21+'Stock à réintégrer O'!J25+'Stock à réintégrer O'!J29+'Stock à réintégrer O'!J33+'Stock à réintégrer O'!J37+'Stock à réintégrer O'!J41+'Stock à réintégrer O'!J45+'Stock à réintégrer O'!J49)","v":3},{"$f":"SUM('Stock à réintégrer O'!K5+'Stock à réintégrer O'!K9+'Stock à réintégrer O'!K13+'Stock à réintégrer O'!K17+'Stock à réintégrer O'!K21+'Stock à réintégrer O'!K25+'Stock à réintégrer O'!K29+'Stock à réintégrer O'!K33+'Stock à réintégrer O'!K37+'Stock à réintégrer O'!K41+'Stock à réintégrer O'!K45+'Stock à réintégrer O'!K49)","v":14},{"$f":"SUM('Stock à réintégrer O'!L5+'Stock à réintégrer O'!L9+'Stock à réintégrer O'!L13+'Stock à réintégrer O'!L17+'Stock à réintégrer O'!L21+'Stock à réintégrer O'!L25+'Stock à réintégrer O'!L29+'Stock à réintégrer O'!L33+'Stock à réintégrer O'!L37+'Stock à réintégrer O'!L41+'Stock à réintégrer O'!L45+'Stock à réintégrer O'!L49)","v":5},{"$f":"SUM('Stock à réintégrer O'!M5+'Stock à réintégrer O'!M9+'Stock à réintégrer O'!M13+'Stock à réintégrer O'!M17+'Stock à réintégrer O'!M21+'Stock à réintégrer O'!M25+'Stock à réintégrer O'!M29+'Stock à réintégrer O'!M33+'Stock à réintégrer O'!M37+'Stock à réintégrer O'!M41+'Stock à réintégrer O'!M45+'Stock à réintégrer O'!M49)","v":0},{"$f":"SUM('Stock à réintégrer O'!N5+'Stock à réintégrer O'!N9+'Stock à réintégrer O'!N13+'Stock à réintégrer O'!N17+'Stock à réintégrer O'!N21+'Stock à réintégrer O'!N25+'Stock à réintégrer O'!N29+'Stock à réintégrer O'!N33+'Stock à réintégrer O'!N37+'Stock à réintégrer O'!N41+'Stock à réintégrer O'!N45+'Stock à réintégrer O'!N49)","v":0},{"$f":"SUM('Stock à réintégrer O'!O5+'Stock à réintégrer O'!O9+'Stock à réintégrer O'!O13+'Stock à réintégrer O'!O17+'Stock à réintégrer O'!O21+'Stock à réintégrer O'!O25+'Stock à réintégrer O'!O29+'Stock à réintégrer O'!O33+'Stock à réintégrer O'!O37+'Stock à réintégrer O'!O41+'Stock à réintégrer O'!O45+'Stock à réintégrer O'!O49)","v":0},{"$f":"SUM('Stock à réintégrer O'!P5+'Stock à réintégrer O'!P9+'Stock à réintégrer O'!P13+'Stock à réintégrer O'!P17+'Stock à réintégrer O'!P21+'Stock à réintégrer O'!P25+'Stock à réintégrer O'!P29+'Stock à réintégrer O'!P33+'Stock à réintégrer O'!P37+'Stock à réintégrer O'!P41+'Stock à réintégrer O'!P45+'Stock à réintégrer O'!P49)","v":0},{"$f":"SUM('Stock à réintégrer O'!Q5+'Stock à réintégrer O'!Q9+'Stock à réintégrer O'!Q13+'Stock à réintégrer O'!Q17+'Stock à réintégrer O'!Q21+'Stock à réintégrer O'!Q25+'Stock à réintégrer O'!Q29+'Stock à réintégrer O'!Q33+'Stock à réintégrer O'!Q37+'Stock à réintégrer O'!Q41+'Stock à réintégrer O'!Q45+'Stock à réintégrer O'!Q49)","v":0},{"$f":"SUM('Stock à réintégrer O'!R5+'Stock à réintégrer O'!R9+'Stock à réintégrer O'!R13+'Stock à réintégrer O'!R17+'Stock à réintégrer O'!R21+'Stock à réintégrer O'!R25+'Stock à réintégrer O'!R29+'Stock à réintégrer O'!R33+'Stock à réintégrer O'!R37+'Stock à réintégrer O'!R41+'Stock à réintégrer O'!R45+'Stock à réintégrer O'!R49)","v":0},{"$f":"SUM('Stock à réintégrer O'!S5+'Stock à réintégrer O'!S9+'Stock à réintégrer O'!S13+'Stock à réintégrer O'!S17+'Stock à réintégrer O'!S21+'Stock à réintégrer O'!S25+'Stock à réintégrer O'!S29+'Stock à réintégrer O'!S33+'Stock à réintégrer O'!S37+'Stock à réintégrer O'!S41+'Stock à réintégrer O'!S45+'Stock à réintégrer O'!S49)","v":2},{"$f":"SUM('Stock à réintégrer O'!T5+'Stock à réintégrer O'!T9+'Stock à réintégrer O'!T13+'Stock à réintégrer O'!T17+'Stock à réintégrer O'!T21+'Stock à réintégrer O'!T25+'Stock à réintégrer O'!T29+'Stock à réintégrer O'!T33+'Stock à réintégrer O'!T37+'Stock à réintégrer O'!T41+'Stock à réintégrer O'!T45+'Stock à réintégrer O'!T49)","v":3},{"$f":"SUM('Stock à réintégrer O'!U5+'Stock à réintégrer O'!U9+'Stock à réintégrer O'!U13+'Stock à réintégrer O'!U17+'Stock à réintégrer O'!U21+'Stock à réintégrer O'!U25+'Stock à réintégrer O'!U29+'Stock à réintégrer O'!U33+'Stock à réintégrer O'!U37+'Stock à réintégrer O'!U41+'Stock à réintégrer O'!U45+'Stock à réintégrer O'!U49)","v":0},{"$f":"SUM('Stock à réintégrer O'!V5+'Stock à réintégrer O'!V9+'Stock à réintégrer O'!V13+'Stock à réintégrer O'!V17+'Stock à réintégrer O'!V21+'Stock à réintégrer O'!V25+'Stock à réintégrer O'!V29+'Stock à réintégrer O'!V33+'Stock à réintégrer O'!V37+'Stock à réintégrer O'!V41+'Stock à réintégrer O'!V45+'Stock à réintégrer O'!V49)","v":2},{"$f":"SUM('Stock à réintégrer O'!W5+'Stock à réintégrer O'!W9+'Stock à réintégrer O'!W13+'Stock à réintégrer O'!W17+'Stock à réintégrer O'!W21+'Stock à réintégrer O'!W25+'Stock à réintégrer O'!W29+'Stock à réintégrer O'!W33+'Stock à réintégrer O'!W37+'Stock à réintégrer O'!W41+'Stock à réintégrer O'!W45+'Stock à réintégrer O'!W49)","v":2},{"$f":"SUM('Stock à réintégrer O'!X5+'Stock à réintégrer O'!X9+'Stock à réintégrer O'!X13+'Stock à réintégrer O'!X17+'Stock à réintégrer O'!X21+'Stock à réintégrer O'!X25+'Stock à réintégrer O'!X29+'Stock à réintégrer O'!X33+'Stock à réintégrer O'!X37+'Stock à réintégrer O'!X41+'Stock à réintégrer O'!X45+'Stock à réintégrer O'!X49)","v":23},{"$f":"SUM('Stock à réintégrer O'!Y5+'Stock à réintégrer O'!Y9+'Stock à réintégrer O'!Y13+'Stock à réintégrer O'!Y17+'Stock à réintégrer O'!Y21+'Stock à réintégrer O'!Y25+'Stock à réintégrer O'!Y29+'Stock à réintégrer O'!Y33+'Stock à réintégrer O'!Y37+'Stock à réintégrer O'!Y41+'Stock à réintégrer O'!Y45+'Stock à réintégrer O'!Y49)","v":54},{"$f":"SUM('Stock à réintégrer O'!Z5+'Stock à réintégrer O'!Z9+'Stock à réintégrer O'!Z13+'Stock à réintégrer O'!Z17+'Stock à réintégrer O'!Z21+'Stock à réintégrer O'!Z25+'Stock à réintégrer O'!Z29+'Stock à réintégrer O'!Z33+'Stock à réintégrer O'!Z37+'Stock à réintégrer O'!Z41+'Stock à réintégrer O'!Z45+'Stock à réintégrer O'!Z49)","v":24},{"$f":"SUM('Stock à réintégrer O'!AA5+'Stock à réintégrer O'!AA9+'Stock à réintégrer O'!AA13+'Stock à réintégrer O'!AA17+'Stock à réintégrer O'!AA21+'Stock à réintégrer O'!AA25+'Stock à réintégrer O'!AA29+'Stock à réintégrer O'!AA33+'Stock à réintégrer O'!AA37+'Stock à réintégrer O'!AA41+'Stock à réintégrer O'!AA45+'Stock à réintégrer O'!AA49)","v":36},{"$f":"SUM('Stock à réintégrer O'!AB5+'Stock à réintégrer O'!AB9+'Stock à réintégrer O'!AB13+'Stock à réintégrer O'!AB17+'Stock à réintégrer O'!AB21+'Stock à réintégrer O'!AB25+'Stock à réintégrer O'!AB29+'Stock à réintégrer O'!AB33+'Stock à réintégrer O'!AB37+'Stock à réintégrer O'!AB41+'Stock à réintégrer O'!AB45+'Stock à réintégrer O'!AB49)","v":36},{"$f":"SUM('Stock à réintégrer O'!AC5+'Stock à réintégrer O'!AC9+'Stock à réintégrer O'!AC13+'Stock à réintégrer O'!AC17+'Stock à réintégrer O'!AC21+'Stock à réintégrer O'!AC25+'Stock à réintégrer O'!AC29+'Stock à réintégrer O'!AC33+'Stock à réintégrer O'!AC37+'Stock à réintégrer O'!AC41+'Stock à réintégrer O'!AC45+'Stock à réintégrer O'!AC49)","v":24},{"$f":"SUM('Stock à réintégrer O'!AD5+'Stock à réintégrer O'!AD9+'Stock à réintégrer O'!AD13+'Stock à réintégrer O'!AD17+'Stock à réintégrer O'!AD21+'Stock à réintégrer O'!AD25+'Stock à réintégrer O'!AD29+'Stock à réintégrer O'!AD33+'Stock à réintégrer O'!AD37+'Stock à réintégrer O'!AD41+'Stock à réintégrer O'!AD45+'Stock à réintégrer O'!AD49)","v":12}]
["Cartons",{"$f":"ROUNDUP(SUM(B6)/4,0)","v":0},0,0,0,4,5,4,0,{"$f":"ROUNDUP(SUM(J6)/3,0)","v":1},{"$f":"ROUNDUP(SUM(K6)/3,0)","v":5},{"$f":"ROUNDUP(SUM(L6)/3,0)","v":2},{"$f":"ROUNDUP(SUM(M6)/3,0)","v":0},{"$f":"ROUNDUP(SUM(N6)/4,0)","v":0},{"$f":"ROUNDUP(SUM(O6)/4,0)","v":0},{"$f":"ROUNDUP(SUM(P6)/4,0)","v":0},{"$f":"ROUNDUP(SUM(Q6)/4,0)","v":0},{"$f":"ROUNDUP(SUM(R6)/8,0)","v":0},{"$f":"ROUNDUP(SUM(S6)/8,0)","v":1},{"$f":"ROUNDUP(SUM(T6)/8,0)","v":1},{"$f":"ROUNDUP(SUM(U6)/8,0)","v":0},{"$f":"ROUNDUP(SUM(V6)/4,0)","v":1},{"$f":"ROUNDUP(SUM(W6)/4,0)","v":1},{"$f":"ROUNDUP(SUM(X6)/4,0)","v":6},{"$f":"ROUNDUP(SUM(Y6)/20,0)","v":3},{"$f":"ROUNDUP(SUM(Z6)/10,0)","v":3},{"$f":"ROUNDUP(SUM(AA6)/10,0)","v":4},{"$f":"ROUNDUP(SUM(AB6)/10,0)","v":4},{"$f":"ROUNDUP(SUM(AC6)/10,0)","v":3},{"$f":"ROUNDUP(SUM(AD6)/12,0)","v":1}]

{"sheet":"Stock avant commande S","index":10,"n_rows":7,"n_cols":30,"rows_kept":7,"cut":false,"hidden":true,"merged":[[0,1,0,3],[2,0,2,25],[4,1,4,4],[4,5,4,8],[4,9,4,12],[4,25,4,28],[4,29,5,29],[4,13,4,16],[4,17,4,20],[4,21,5,21],[4,22,5,22],[4,23,5,23],[4,24,5,24]]}
["Date:","2021-03-17"]
[]
["Stock avant commande Unité S"]
[]
[null,"Change complet JOUR       (4 paquets par carton)",null,null,null,"Change complet NUIT       (4 paquets par carton)",null,null,null,"ID SLIP EXPERT\nMAXI PRIME\n(3 paquets par carton)",null,null,null,"TENA SLIP MAX\n(4 paquets par carton)",null,null,null,"Pants                                       (8 paquets par carton)",null,null,null,"Anaform Extra              (4 paquets par carton)","Aleze           60 X60            (4 paquets par carton)","Aleze           60 X90            (4 paquets par carton)","Gants usage unique (20 paquets \npar carton)","Gants Vinyle                      (10 boites \npar carton)",null,null,null,"Mousse lavante      (12 par carton)"]
[null,"S","M","L","XL","S","M","L","XL","S","M","L","XL","S","M","L","XL","S","M","L","XL",null,null,null,null,"S","M","L","XL"]
["Paquets"]

{"sheet":"COMMANDE S","index":11,"n_rows":8,"n_cols":30,"rows_kept":8,"cut":false,"hidden":true,"merged":[[0,1,0,3],[2,0,2,25],[4,23,5,23],[4,24,5,24],[4,25,4,28],[4,29,5,29],[4,1,4,4],[4,5,4,8],[4,17,4,20],[4,21,5,21],[4,22,5,22],[4,9,4,12],[4,13,4,16]]}
["Date:",{"$f":"'Stock avant commande S'!B1:D1","v":"2021-03-17"}]
[]
["Commande protections Unité S"]
[]
[null,"Change complet JOUR       (4 paquets par carton)",null,null,null,"Change complet NUIT       (4 paquets par carton)",null,null,null,"ID SLIP EXPERT\nMAXI PRIME\n(3 paquets par carton)",null,null,null,"TENA SLIP MAX\n(4 paquets par carton)",null,null,null,"Pants                                       (8 paquets par carton)",null,null,null,"Anaform Extra              (4 paquets par carton)","Aleze           60 X60            (4 paquets par carton)","Aleze           60 X90            (4 paquets par carton)","Gants usage unique (20 paquets \npar carton)","Gants Vinyle                      (10 boites \npar carton)",null,null,null,"Mousse lavante      (12 par carton)"]
[null,"S","M","L","XL","S","M","L","XL","S","M","L","XL","S","M","L","XL","S","M","L","XL",null,null,null,null,"S","M","L","XL"]
["Paquets",{"$f":"SUM('Stock avant commande S'!B7)","v":0},{"$f":"SUM('Stock avant commande S'!C7)","v":0},{"$f":"SUM('Stock avant commande S'!D7)","v":0},{"$f":"SUM('Stock avant commande S'!E7)","v":0},{"$f":"SUM('Stock avant commande S'!F7)","v":0},{"$f":"SUM('Stock avant commande S'!G7)","v":0},{"$f":"SUM('Stock avant commande S'!H7)","v":0},{"$f":"SUM('Stock avant commande S'!I7)","v":0},{"$f":"SUM('Stock avant commande S'!J7)","v":0},{"$f":"SUM('Stock avant commande S'!K7)","v":0},{"$f":"SUM('Stock avant commande S'!L7)","v":0},{"$f":"SUM('Stock avant commande S'!M7)","v":0},{"$f":"SUM('Stock avant commande S'!N7)","v":0},{"$f":"SUM('Stock avant commande S'!O7)","v":0},{"$f":"SUM('Stock avant commande S'!P7)","v":0},{"$f":"SUM('Stock avant commande S'!Q7)","v":0},{"$f":"SUM('Stock avant commande S'!R7)","v":0},{"$f":"SUM('Stock avant commande S'!S7)","v":0},{"$f":"SUM('Stock avant commande S'!T7)","v":0},{"$f":"SUM('Stock avant commande S'!U7)","v":0},{"$f":"SUM('Stock avant commande S'!V7)","v":0},{"$f":"SUM('Stock avant commande S'!W7)","v":0},{"$f":"SUM('Stock avant commande S'!X7)","v":0},{"$f":"SUM('Stock avant commande S'!Y7)","v":0},{"$f":"SUM('Stock avant commande S'!Z7)","v":0},{"$f":"SUM('Stock avant commande S'!AA7)","v":0},{"$f":"SUM('Stock avant commande S'!AB7)","v":0},{"$f":"SUM('Stock avant commande S'!AC7)","v":0},{"$f":"SUM('Stock avant commande S'!AD7)","v":0}]
["Cartons",{"$f":"ROUNDUP(SUM(B7)/4,0)","v":0},0,0,0,0,0,0,0,{"$f":"ROUNDUP(SUM(J7)/3,0)","v":0},{"$f":"ROUNDUP(SUM(K7)/3,0)","v":0},{"$f":"ROUNDUP(SUM(L7)/3,0)","v":0},{"$f":"ROUNDUP(SUM(M7)/3,0)","v":0},0,0,0,0,{"$f":"ROUNDUP(SUM(R7)/8,0)","v":0},{"$f":"ROUNDUP(SUM(S7)/8,0)","v":0},{"$f":"ROUNDUP(SUM(T7)/8,0)","v":0},{"$f":"ROUNDUP(SUM(U7)/8,0)","v":0},0,0,0,{"$f":"ROUNDUP(SUM(Y7)/20,0)","v":0},{"$f":"ROUNDUP(SUM(Z7)/10,0)","v":0},{"$f":"ROUNDUP(SUM(AA7)/10,0)","v":0},{"$f":"ROUNDUP(SUM(AB7)/10,0)","v":0},{"$f":"ROUNDUP(SUM(AC7)/10,0)","v":0},{"$f":"ROUNDUP(SUM(AD7)/12,0)","v":0}]